{"text_format":"1","workbook":"xlsx","n_sheets":11,"sheets":["基礎入力画面","入力画面","入力画面　技術資格者名簿 ","入力画面（技術者）","競争入札参加資格審査申請","申請書（登録データ１，２） ","申請書（登録データ３) ","技術資格者名簿","マスタ","マクロ有効化案内","資格者集計ワーク"],"not_rendered":{"charts":0,"images":1,"macros":1,"external_links":1,"defined_names":263,"comments":5,"pivot_tables":0},"unopened":[],"bounds":{"document_bytes":16777216,"sheet_cells":100000,"rows_first":2000,"rows_last":500,"rows_between":2000,"halvings":0,"cell_chars":16384,"cell_head_chars":4096},"cells_cut":0,"cells_raw":0,"read":"whole","date_system":"1900"}

{"sheet":"基礎入力画面","index":0,"n_rows":61,"n_cols":52,"rows_kept":61,"cut":false,"hidden":true,"merged":[[0,0,0,48],[61,20,61,29],[42,2,44,2],[43,4,43,6],[43,8,43,11],[45,4,45,12],[46,4,46,12],[49,8,49,16],[50,4,50,7],[50,8,50,16],[53,4,53,28],[55,4,55,28],[57,4,57,28],[58,4,58,28],[60,2,62,2],[61,4,61,13],[10,1,31,1],[10,2,12,2],[11,4,11,6],[11,8,11,11],[14,4,14,12],[22,4,22,28],[14,16,14,24],[24,4,24,28],[26,4,26,28],[27,4,27,28],[29,2,31,2],[29,15,31,19],[30,4,30,13],[30,20,30,29],[4,4,4,11],[6,2,9,2],[7,4,7,6],[7,8,7,11],[18,2,20,2],[18,8,18,16],[19,4,19,7],[19,8,19,16],[15,16,15,24],[15,4,15,12],[19,17,19,46],[18,17,18,46],[45,16,45,24],[49,17,49,46],[39,4,39,8],[41,1,62,1],[43,13,43,33],[49,2,51,2],[46,16,46,24],[50,17,50,46],[60,15,62,19],[36,4,36,46],[33,30,34,43],[33,2,34,2],[33,4,34,13],[33,15,34,19],[33,20,34,29]]}
["競争入札参加資格審査申請（委託業務） 基礎入力画面",null,null,null,null,null,null,null,null,null,null,null,null,null,null,null,null,null,null,null,null,null,null,null,null,null,null,null,null,null,null,null,null,null,null,null,null,null,null,null,null,null,null,null,null,null,null,null,null,null,null,"入力チェック"]
[]
[]
[]
[null,null,"申請区分"]
[]
[null,null,"業者番号"]
[null,null,null,null,"B",null,null,"-"]
[]
[]
[null,"本店","郵便番号"]
[null,null,null,null,null,null,null,"-"]
[]
[]
[null,null,null,null,"都道府県コード",null,null,null,null,null,null,null,null,null,null,null,"市町村コード"]
[null,null,"住所コード"]
[]
[]
[null,null,"所在地",null,"都道府県名",null,null,null,"市町村名",null,null,null,null,null,null,null,null,"町名以下"]
[]
[]
[]
[null,null,"(フリガナ)"]
[]
[null,null,"商号名称"]
[]
[null,null,"(フリガナ)"]
[null,null,"代表者名"]
[]
[null,null,"電話番号",null,null,null,null,null,null,null,null,null,null,null,null,"FAX番号"]
[]
[]
[]
[null,null,"緊急連絡先\n（携帯電話）",null,null,null,null,null,null,null,null,null,null,null,null,"緊急連絡先氏名",null,null,null,null,null,null,null,null,null,null,null,null,null,null,"※市内業者のみ入力。"]
[]
[]
[null,null,"メールアドレス"]
[]
[]
[null,null,"支店有無"]
[]
[null,"支店登録",null,null,"※沖縄県内の業者で那覇市内に支店がある場合、又は、沖縄県外の業者で沖縄県内に支店がある場合、入力。"]
[null,null,"郵便番号"]
[null,null,null,null,null,null,null,"-",null,null,null,null,null,"※市内業者の記入不可"]
[]
[null,null,null,null,"都道府県コード",null,null,null,null,null,null,null,null,null,null,null,"市町村コード"]
[null,null,"住所コード"]
[]
[]
[null,null,"所在地",null,"都道府県名",null,null,null,"市町村名",null,null,null,null,null,null,null,null,"町名以下"]
[]
[]
[]
[null,null,"(フリガナ)"]
[]
[null,null,"支店・営業所名"]
[]
[null,null,"（フリガナ）"]
[null,null,"支店長・\n所長"]
[]
[null,null,"電話番号",null,null,null,null,null,null,null,null,null,null,null,null,"FAX番号"]

{"sheet":"入力画面","index":1,"n_rows":54,"n_cols":10,"rows_kept":54,"cut":false,"hidden":true,"merged":[[29,1,31,4],[26,4,27,4],[26,5,27,5],[26,0,27,0],[26,1,27,1],[26,2,27,2],[26,3,27,3],[29,0,31,0],[0,0,0,6],[14,0,17,0],[14,1,17,1],[14,3,17,3],[14,5,17,5],[14,2,16,2],[14,4,17,4],[14,6,17,6],[8,0,8,7],[9,0,9,7],[10,0,10,7],[11,0,12,7],[14,7,17,7],[6,0,7,7],[24,0,25,0],[18,0,19,0],[20,0,21,0],[22,0,23,0],[24,1,25,1],[24,5,25,5],[22,1,23,1],[22,5,23,5],[24,2,25,2],[22,2,23,2],[24,3,25,3],[22,4,23,4],[24,4,25,4],[22,3,23,3],[22,6,23,6],[24,6,25,6],[26,6,27,6],[18,7,19,7],[20,7,21,7],[22,7,23,7],[24,7,25,7],[26,7,27,7],[20,5,21,5],[18,1,19,1],[18,5,19,5],[18,2,19,2],[18,6,19,6],[20,6,21,6],[20,2,21,2],[20,1,21,1],[18,4,19,4],[20,4,21,4],[18,3,19,3],[20,3,21,3]]}
["入力画面",null,null,null,null,null,null,"入力チェック"]
[]
[]
[]
[]
[]
["業種別データ"]
[]
["※今回登録を希望する業種及び業務内容を入力してください。（最大各々５つまで）"]
["○　業　　種：　優先して登録したい業種順に、プルダウンより選択。"]
["○　業務内容：　登録したい業務内容を希望順に、プルダウンより選択。"]
["○年間平均実績高は、県様式「経営規模等総括表」の測量等実績高により入力。また設備設計ｺﾝｻﾙﾀﾝﾄ、磁気探査調査業務、気象関係ｺﾝｻﾙﾀﾝﾄ等県様式にない業務については、追加入力してください。"]
[]
[]
["順位","業種","年間平均　　　　　　　　　　　　　　　　　　　　　　\n実績高　　　　　　　　　　　　　　　　　　　　　　　　　　　　　　　　　　　　　　　　　　　　　　　　　　　　　　　　　　　　　　　　　　　　　　　　　　　　　　　　　　　　　　　　　　　　　　　　","業務内容1","業務内容2","業務内容3","業務内容4","業務内容5"]
[]
[]
[null,null,"（千円）"]
[1,null,null,null,null,null,null,null,null,{"$f":"SUBSTITUTE(\"業務内容\" & I02_業種01, \" \", \"\")","v":"業務内容"}]
[]
[2,null,null,null,null,null,null,null,null,{"$f":"SUBSTITUTE(\"業務内容\" & I02_業種02, \" \", \"\")","v":"業務内容"}]
[]
[3,null,null,null,null,null,null,null,null,{"$f":"SUBSTITUTE(\"業務内容\" & I02_業種03, \" \", \"\")","v":"業務内容"}]
[]
[4,null,null,null,null,null,null,null,null,{"$f":"SUBSTITUTE(\"業務内容\" & I02_業種04, \" \", \"\")","v":"業務内容"}]
[]
[5,null,null,null,null,null,null,null,null,{"$f":"SUBSTITUTE(\"業務内容\" & I02_業種05, \" \", \"\")","v":"業務内容"}]
[]
[]
["業種「その他」の\n具体的な業務内容"]
[]
[]
[]
["経営規模等総括表等登録内容"]
[]
["大中小企業の別"]
["資本金",null,"（千円）"]
["自己資本",null,"（千円）"]
["営業年数",null,"年"]
["那覇市内での営業年数",null,"年"]
[]
["税登録内容"]
["那覇市課税"]
["消費税"]
[]
["保険等内容"]
["労働災害保険"]
["雇用保険"]
["健康保険・厚生年金"]
[]
["雇用の規模及び障害者雇用人数"]
["雇用の規模",null,"人"]
["常用雇用障害者の数",null,"人"]
["障害者法定雇用義務の達成状況","09 義務無し"]

{"sheet":"入力画面　技術資格者名簿 ","index":2,"n_rows":205,"n_cols":27,"rows_kept":205,"cut":false,"hidden":true,"merged":[[4,14,4,24],[5,14,5,17],[5,19,5,24],[6,14,6,17],[6,19,6,24],[7,14,7,17],[7,19,7,24],[0,0,0,13],[4,4,4,13],[2,9,2,12],[11,14,11,17],[11,19,11,24],[12,14,12,17],[12,19,12,24],[13,14,13,17],[13,19,13,24],[8,14,8,17],[8,19,8,24],[9,14,9,17],[9,19,9,24],[10,14,10,17],[10,19,10,24],[17,14,17,17],[17,19,17,24],[18,14,18,17],[18,19,18,24],[19,14,19,17],[19,19,19,24],[14,14,14,17],[14,19,14,24],[15,14,15,17],[15,19,15,24],[16,14,16,17],[16,19,16,24],[23,14,23,17],[23,19,23,24],[24,14,24,17],[24,19,24,24],[25,14,25,17],[25,19,25,24],[20,14,20,17],[20,19,20,24],[21,14,21,17],[21,19,21,24],[22,14,22,17],[22,19,22,24],[29,14,29,17],[29,19,29,24],[30,14,30,17],[30,19,30,24],[31,14,31,17],[31,19,31,24],[26,14,26,17],[26,19,26,24],[27,14,27,17],[27,19,27,24],[28,14,28,17],[28,19,28,24],[35,14,35,17],[35,19,35,24],[36,14,36,17],[36,19,36,24],[37,14,37,17],[37,19,37,24],[32,14,32,17],[32,19,32,24],[33,14,33,17],[33,19,33,24],[34,14,34,17],[34,19,34,24],[41,14,41,17],[41,19,41,24],[42,14,42,17],[42,19,42,24],[43,14,43,17],[43,19,43,24],[38,14,38,17],[38,19,38,24],[39,14,39,17],[39,19,39,24],[40,14,40,17],[40,19,40,24],[47,14,47,17],[47,19,47,24],[48,14,48,17],[48,19,48,24],[49,14,49,17],[49,19,49,24],[44,14,44,17],[44,19,44,24],[45,14,45,17],[45,19,45,24],[46,14,46,17],[46,19,46,24],[53,14,53,17],[53,19,53,24],[54,14,54,17],[54,19,54,24],[55,14,55,17],[55,19,55,24],[50,14,50,17],[50,19,50,24],[51,14,51,17],[51,19,51,24],[52,14,52,17],[52,19,52,24],[59,14,59,17],[59,19,59,24],[60,14,60,17],[60,19,60,24],[61,14,61,17],[61,19,61,24],[56,14,56,17],[56,19,56,24],[57,14,57,17],[57,19,57,24],[58,14,58,17],[58,19,58,24],[65,14,65,17],[65,19,65,24],[66,14,66,17],[66,19,66,24],[67,14,67,17],[67,19,67,24],[62,14,62,17],[62,19,62,24],[63,14,63,17],[63,19,63,24],[64,14,64,17],[64,19,64,24],[71,14,71,17],[71,19,71,24],[72,14,72,17],[72,19,72,24],[73,14,73,17],[73,19,73,24],[68,14,68,17],[68,19,68,24],[69,14,69,17],[69,19,69,24],[70,14,70,17],[70,19,70,24],[77,14,77,17],[77,19,77,24],[78,14,78,17],[78,19,78,24],[79,14,79,17],[79,19,79,24],[74,14,74,17],[74,19,74,24],[75,14,75,17],[75,19,75,24],[76,14,76,17],[76,19,76,24],[83,14,83,17],[83,19,83,24],[84,14,84,17],[84,19,84,24],[85,14,85,17],[85,19,85,24],[80,14,80,17],[80,19,80,24],[81,14,81,17],[81,19,81,24],[82,14,82,17],[82,19,82,24],[89,14,89,17],[89,19,89,24],[90,14,90,17],[90,19,90,24],[91,14,91,17],[91,19,91,24],[86,14,86,17],[86,19,86,24],[87,14,87,17],[87,19,87,24],[88,14,88,17],[88,19,88,24],[95,14,95,17],[95,19,95,24],[96,14,96,17],[96,19,96,24],[97,14,97,17],[97,19,97,24],[92,14,92,17],[92,19,92,24],[93,14,93,17],[93,19,93,24],[94,14,94,17],[94,19,94,24],[101,14,101,17],[101,19,101,24],[102,14,102,17],[102,19,102,24],[103,14,103,17],[103,19,103,24],[98,14,98,17],[98,19,98,24],[99,14,99,17],[99,19,99,24],[100,14,100,17],[100,19,100,24],[107,14,107,17],[107,19,107,24],[108,14,108,17],[108,19,108,24],[109,14,109,17],[109,19,109,24],[104,14,104,17],[104,19,104,24],[105,14,105,17],[105,19,105,24],[106,14,106,17],[106,19,106,24],[113,14,113,17],[113,19,113,24],[114,14,114,17],[114,19,114,24],[115,14,115,17],[115,19,115,24],[110,14,110,17],[110,19,110,24],[111,14,111,17],[111,19,111,24],[112,14,112,17],[112,19,112,24],[119,14,119,17],[119,19,119,24],[120,14,120,17],[120,19,120,24],[121,14,121,17],[121,19,121,24],[116,14,116,17],[116,19,116,24],[117,14,117,17],[117,19,117,24],[118,14,118,17],[118,19,118,24],[125,14,125,17],[125,19,125,24],[126,14,126,17],[126,19,126,24],[127,14,127,17],[127,19,127,24],[122,14,122,17],[122,19,122,24],[123,14,123,17],[123,19,123,24],[124,14,124,17],[124,19,124,24],[131,14,131,17],[131,19,131,24],[132,14,132,17],[132,19,132,24],[133,14,133,17],[133,19,133,24],[128,14,128,17],[128,19,128,24],[129,14,129,17],[129,19,129,24],[130,14,130,17],[130,19,130,24],[137,14,137,17],[137,19,137,24],[138,14,138,17],[138,19,138,24],[139,14,139,17],[139,19,139,24],[134,14,134,17],[134,19,134,24],[135,14,135,17],[135,19,135,24],[136,14,136,17],[136,19,136,24],[143,14,143,17],[143,19,143,24],[144,14,144,17],[144,19,144,24],[145,14,145,17],[145,19,145,24],[140,14,140,17],[140,19,140,24],[141,14,141,17],[141,19,141,24],[142,14,142,17],[142,19,142,24],[149,14,149,17],[149,19,149,24],[150,14,150,17],[150,19,150,24],[151,14,151,17],[151,19,151,24],[146,14,146,17],[146,19,146,24],[147,14,147,17],[147,19,147,24],[148,14,148,17],[148,19,148,24],[155,14,155,17],[155,19,155,24],[156,14,156,17],[156,19,156,24],[157,14,157,17],[157,19,157,24],[152,14,152,17],[152,19,152,24],[153,14,153,17],[153,19,153,24],[154,14,154,17],[154,19,154,24],[161,14,161,17],[161,19,161,24],[162,14,162,17],[162,19,162,24],[163,14,163,17],[163,19,163,24],[158,14,158,17],[158,19,158,24],[159,14,159,17],[159,19,159,24],[160,14,160,17],[160,19,160,24],[167,14,167,17],[167,19,167,24],[168,14,168,17],[168,19,168,24],[169,14,169,17],[169,19,169,24],[164,14,164,17],[164,19,164,24],[165,14,165,17],[165,19,165,24],[166,14,166,17],[166,19,166,24],[173,14,173,17],[173,19,173,24],[174,14,174,17],[174,19,174,24],[175,14,175,17],[175,19,175,24],[170,14,170,17],[170,19,170,24],[171,14,171,17],[171,19,171,24],[172,14,172,17],[172,19,172,24],[179,14,179,17],[179,19,179,24],[180,14,180,17],[180,19,180,24],[181,14,181,17],[181,19,181,24],[176,14,176,17],[176,19,176,24],[177,14,177,17],[177,19,177,24],[178,14,178,17],[178,19,178,24],[185,14,185,17],[185,19,185,24],[186,14,186,17],[186,19,186,24],[187,14,187,17],[187,19,187,24],[182,14,182,17],[182,19,182,24],[183,14,183,17],[183,19,183,24],[184,14,184,17],[184,19,184,24],[191,19,191,24],[192,14,192,17],[192,19,192,24],[193,14,193,17],[193,19,193,24],[188,14,188,17],[188,19,188,24],[189,14,189,17],[189,19,189,24],[190,14,190,17],[190,19,190,24],[191,14,191,17],[203,14,203,17],[203,19,203,24],[204,14,204,17],[204,19,204,24],[200,14,200,17],[200,19,200,24],[201,14,201,17],[201,19,201,24],[202,14,202,17],[202,19,202,24],[197,14,197,17],[197,19,197,24],[198,14,198,17],[198,19,198,24],[199,14,199,17],[199,19,199,24],[194,14,194,17],[194,19,194,24],[195,14,195,17],[195,19,195,24],[196,14,196,17],[196,19,196,24]]}
[" 技　術　職　員　有　資　格　者　名　簿　入　力　画　面",null,null,null,null,null,null,null,null,null,null,null,null,null,null,null,null,null,null,null,null,null,null,null,null,null,"入力チェック"]
[]
[null,null,null,null,null,null,null,null,null,{"$f":"IF(ISNUMBER(申請年度01), DATEVALUE(YEAR(申請年度01) - 1 & \"/12/01\"), \"申請年度の設定値が不正\")","v":"2023-12-01"},null,null,null," 現在"]
[]
["No.","氏名","フリガナ(カタカナで記入)","生年月日","有資格者区分コード\n＊別紙「資格区分コード表」に記載されているコードのみ対象",null,null,null,null,null,null,null,null,null,"基礎年金番号",null,null,null,null,null,null,null,null,null,null,"監理技術者資格者証所有の有無"]
[{"$f":"ROW() - 5","v":1},null,null,null,null,null,null,null,null,null,null,null,null,null,0,null,null,null,"-",0]
[{"$f":"ROW() - 5","v":2},null,null,null,null,null,null,null,null,null,null,null,null,null,0,null,null,null,"-",0]
[3,null,null,null,null,null,null,null,null,null,null,null,null,null,0,null,null,null,"-",0]
[4,null,null,null,null,null,null,null,null,null,null,null,null,null,0,null,null,null,"-",0]
[5,null,null,null,null,null,null,null,null,null,null,null,null,null,0,null,null,null,"-",0]
[6,null,null,null,null,null,null,null,null,null,null,null,null,null,0,null,null,null,"-",0]
[7,null,null,null,null,null,null,null,null,null,null,null,null,null,0,null,null,null,"-",0]
[8,null,null,null,null,null,null,null,null,null,null,null,null,null,0,null,null,null,"-",0]
[9,null,null,null,null,null,null,null,null,null,null,null,null,null,0,null,null,null,"-",0]
[10,null,null,null,null,null,null,null,null,null,null,null,null,null,0,null,null,null,"-",0]
[11,null,null,null,null,null,null,null,null,null,null,null,null,null,0,null,null,null,"-",0]
[12,null,null,null,null,null,null,null,null,null,null,null,null,null,0,null,null,null,"-",0]
[13,null,null,null,null,null,null,null,null,null,null,null,null,null,0,null,null,null,"-",0]
[14,null,null,null,null,null,null,null,null,null,null,null,null,null,0,null,null,null,"-",0]
[15,null,null,null,null,null,null,null,null,null,null,null,null,null,0,null,null,null,"-",0]
[16,null,null,null,null,null,null,null,null,null,null,null,null,null,0,null,null,null,"-",0]
[17,null,null,null,null,null,null,null,null,null,null,null,null,null,0,null,null,null,"-",0]
[18,null,null,null,null,null,null,null,null,null,null,null,null,null,0,null,null,null,"-",0]
[19,null,null,null,null,null,null,null,null,null,null,null,null,null,0,null,null,null,"-",0]
[20,null,null,null,null,null,null,null,null,null,null,null,null,null,0,null,null,null,"-",0]
[21,null,null,null,null,null,null,null,null,null,null,null,null,null,0,null,null,null,"-",0]
[22,null,null,null,null,null,null,null,null,null,null,null,null,null,0,null,null,null,"-",0]
[23,null,null,null,null,null,null,null,null,null,null,null,null,null,0,null,null,null,"-",0]
[24,null,null,null,null,null,null,null,null,null,null,null,null,null,0,null,null,null,"-",0]
[25,null,null,null,null,null,null,null,null,null,null,null,null,null,0,null,null,null,"-",0]
[26,null,null,null,null,null,null,null,null,null,null,null,null,null,0,null,null,null,"-",0]
[27,null,null,null,null,null,null,null,null,null,null,null,null,null,0,null,null,null,"-",0]
[28,null,null,null,null,null,null,null,null,null,null,null,null,null,0,null,null,null,"-",0]
[29,null,null,null,null,null,null,null,null,null,null,null,null,null,0,null,null,null,"-",0]
[30,null,null,null,null,null,null,null,null,null,null,null,null,null,0,null,null,null,"-",0]
[31,null,null,null,null,null,null,null,null,null,null,null,null,null,0,null,null,null,"-",0]
[32,null,null,null,null,null,null,null,null,null,null,null,null,null,0,null,null,null,"-",0]
[33,null,null,null,null,null,null,null,null,null,null,null,null,null,0,null,null,null,"-",0]
[34,null,null,null,null,null,null,null,null,null,null,null,null,null,0,null,null,null,"-",0]
[35,null,null,null,null,null,null,null,null,null,null,null,null,null,0,null,null,null,"-",0]
[36,null,null,null,null,null,null,null,null,null,null,null,null,null,0,null,null,null,"-",0]
[37,null,null,null,null,null,null,null,null,null,null,null,null,null,0,null,null,null,"-",0]
[38,null,null,null,null,null,null,null,null,null,null,null,null,null,0,null,null,null,"-",0]
[39,null,null,null,null,null,null,null,null,null,null,null,null,null,0,null,null,null,"-",0]
[40,null,null,null,null,null,null,null,null,null,null,null,null,null,0,null,null,null,"-",0]
[41,null,null,null,null,null,null,null,null,null,null,null,null,null,0,null,null,null,"-",0]
[42,null,null,null,null,null,null,null,null,null,null,null,null,null,0,null,null,null,"-",0]
[43,null,null,null,null,null,null,null,null,null,null,null,null,null,0,null,null,null,"-",0]
[44,null,null,null,null,null,null,null,null,null,null,null,null,null,0,null,null,null,"-",0]
[45,null,null,null,null,null,null,null,null,null,null,null,null,null,0,null,null,null,"-",0]
[46,null,null,null,null,null,null,null,null,null,null,null,null,null,0,null,null,null,"-",0]
[47,null,null,null,null,null,null,null,null,null,null,null,null,null,0,null,null,null,"-",0]
[48,null,null,null,null,null,null,null,null,null,null,null,null,null,0,null,null,null,"-",0]
[49,null,null,null,null,null,null,null,null,null,null,null,null,null,0,null,null,null,"-",0]
[50,null,null,null,null,null,null,null,null,null,null,null,null,null,0,null,null,null,"-",0]
[51,null,null,null,null,null,null,null,null,null,null,null,null,null,0,null,null,null,"-",0]
[52,null,null,null,null,null,null,null,null,null,null,null,null,null,0,null,null,null,"-",0]
[53,null,null,null,null,null,null,null,null,null,null,null,null,null,0,null,null,null,"-",0]
[54,null,null,null,null,null,null,null,null,null,null,null,null,null,0,null,null,null,"-",0]
[55,null,null,null,null,null,null,null,null,null,null,null,null,null,0,null,null,null,"-",0]
[56,null,null,null,null,null,null,null,null,null,null,null,null,null,0,null,null,null,"-",0]
[57,null,null,null,null,null,null,null,null,null,null,null,null,null,0,null,null,null,"-",0]
[58,null,null,null,null,null,null,null,null,null,null,null,null,null,0,null,null,null,"-",0]
[59,null,null,null,null,null,null,null,null,null,null,null,null,null,0,null,null,null,"-",0]
[60,null,null,null,null,null,null,null,null,null,null,null,null,null,0,null,null,null,"-",0]
[61,null,null,null,null,null,null,null,null,null,null,null,null,null,0,null,null,null,"-",0]
[62,null,null,null,null,null,null,null,null,null,null,null,null,null,0,null,null,null,"-",0]
[63,null,null,null,null,null,null,null,null,null,null,null,null,null,0,null,null,null,"-",0]
[64,null,null,null,null,null,null,null,null,null,null,null,null,null,0,null,null,null,"-",0]
[65,null,null,null,null,null,null,null,null,null,null,null,null,null,0,null,null,null,"-",0]
[{"$f":"ROW() - 5","v":66},null,null,null,null,null,null,null,null,null,null,null,null,null,0,null,null,null,"-",0]
[67,null,null,null,null,null,null,null,null,null,null,null,null,null,0,null,null,null,"-",0]
[68,null,null,null,null,null,null,null,null,null,null,null,null,null,0,null,null,null,"-",0]
[69,null,null,null,null,null,null,null,null,null,null,null,null,null,0,null,null,null,"-",0]
[70,null,null,null,null,null,null,null,null,null,null,null,null,null,0,null,null,null,"-",0]
[71,null,null,null,null,null,null,null,null,null,null,null,null,null,0,null,null,null,"-",0]
[72,null,null,null,null,null,null,null,null,null,null,null,null,null,0,null,null,null,"-",0]
[73,null,null,null,null,null,null,null,null,null,null,null,null,null,0,null,null,null,"-",0]
[74,null,null,null,null,null,null,null,null,null,null,null,null,null,0,null,null,null,"-",0]
[75,null,null,null,null,null,null,null,null,null,null,null,null,null,0,null,null,null,"-",0]
[76,null,null,null,null,null,null,null,null,null,null,null,null,null,0,null,null,null,"-",0]
[77,null,null,null,null,null,null,null,null,null,null,null,null,null,0,null,null,null,"-",0]
[78,null,null,null,null,null,null,null,null,null,null,null,null,null,0,null,null,null,"-",0]
[79,null,null,null,null,null,null,null,null,null,null,null,null,null,0,null,null,null,"-",0]
[80,null,null,null,null,null,null,null,null,null,null,null,null,null,0,null,null,null,"-",0]
[81,null,null,null,null,null,null,null,null,null,null,null,null,null,0,null,null,null,"-",0]
[82,null,null,null,null,null,null,null,null,null,null,null,null,null,0,null,null,null,"-",0]
[83,null,null,null,null,null,null,null,null,null,null,null,null,null,0,null,null,null,"-",0]
[84,null,null,null,null,null,null,null,null,null,null,null,null,null,0,null,null,null,"-",0]
[85,null,null,null,null,null,null,null,null,null,null,null,null,null,0,null,null,null,"-",0]
[86,null,null,null,null,null,null,null,null,null,null,null,null,null,0,null,null,null,"-",0]
[87,null,null,null,null,null,null,null,null,null,null,null,null,null,0,null,null,null,"-",0]
[88,null,null,null,null,null,null,null,null,null,null,null,null,null,0,null,null,null,"-",0]
[89,null,null,null,null,null,null,null,null,null,null,null,null,null,0,null,null,null,"-",0]
[90,null,null,null,null,null,null,null,null,null,null,null,null,null,0,null,null,null,"-",0]
[91,null,null,null,null,null,null,null,null,null,null,null,null,null,0,null,null,null,"-",0]
[92,null,null,null,null,null,null,null,null,null,null,null,null,null,0,null,null,null,"-",0]
[93,null,null,null,null,null,null,null,null,null,null,null,null,null,0,null,null,null,"-",0]
[94,null,null,null,null,null,null,null,null,null,null,null,null,null,0,null,null,null,"-",0]
[95,null,null,null,null,null,null,null,null,null,null,null,null,null,0,null,null,null,"-",0]
[96,null,null,null,null,null,null,null,null,null,null,null,null,null,0,null,null,null,"-",0]
[97,null,null,null,null,null,null,null,null,null,null,null,null,null,0,null,null,null,"-",0]
[98,null,null,null,null,null,null,null,null,null,null,null,null,null,0,null,null,null,"-",0]
[99,null,null,null,null,null,null,null,null,null,null,null,null,null,0,null,null,null,"-",0]
[100,null,null,null,null,null,null,null,null,null,null,null,null,null,0,null,null,null,"-",0]
[101,null,null,null,null,null,null,null,null,null,null,null,null,null,0,null,null,null,"-",0]
[102,null,null,null,null,null,null,null,null,null,null,null,null,null,0,null,null,null,"-",0]
[103,null,null,null,null,null,null,null,null,null,null,null,null,null,0,null,null,null,"-",0]
[104,null,null,null,null,null,null,null,null,null,null,null,null,null,0,null,null,null,"-",0]
[105,null,null,null,null,null,null,null,null,null,null,null,null,null,0,null,null,null,"-",0]
[106,null,null,null,null,null,null,null,null,null,null,null,null,null,0,null,null,null,"-",0]
[107,null,null,null,null,null,null,null,null,null,null,null,null,null,0,null,null,null,"-",0]
[108,null,null,null,null,null,null,null,null,null,null,null,null,null,0,null,null,null,"-",0]
[109,null,null,null,null,null,null,null,null,null,null,null,null,null,0,null,null,null,"-",0]
[110,null,null,null,null,null,null,null,null,null,null,null,null,null,0,null,null,null,"-",0]
[111,null,null,null,null,null,null,null,null,null,null,null,null,null,0,null,null,null,"-",0]
[112,null,null,null,null,null,null,null,null,null,null,null,null,null,0,null,null,null,"-",0]
[113,null,null,null,null,null,null,null,null,null,null,null,null,null,0,null,null,null,"-",0]
[114,null,null,null,null,null,null,null,null,null,null,null,null,null,0,null,null,null,"-",0]
[115,null,null,null,null,null,null,null,null,null,null,null,null,null,0,null,null,null,"-",0]
[116,null,null,null,null,null,null,null,null,null,null,null,null,null,0,null,null,null,"-",0]
[117,null,null,null,null,null,null,null,null,null,null,null,null,null,0,null,null,null,"-",0]
[118,null,null,null,null,null,null,null,null,null,null,null,null,null,0,null,null,null,"-",0]
[119,null,null,null,null,null,null,null,null,null,null,null,null,null,0,null,null,null,"-",0]
[120,null,null,null,null,null,null,null,null,null,null,null,null,null,0,null,null,null,"-",0]
[121,null,null,null,null,null,null,null,null,null,null,null,null,null,0,null,null,null,"-",0]
[122,null,null,null,null,null,null,null,null,null,null,null,null,null,0,null,null,null,"-",0]
[123,null,null,null,null,null,null,null,null,null,null,null,null,null,0,null,null,null,"-",0]
[124,null,null,null,null,null,null,null,null,null,null,null,null,null,0,null,null,null,"-",0]
[125,null,null,null,null,null,null,null,null,null,null,null,null,null,0,null,null,null,"-",0]
[126,null,null,null,null,null,null,null,null,null,null,null,null,null,0,null,null,null,"-",0]
[127,null,null,null,null,null,null,null,null,null,null,null,null,null,0,null,null,null,"-",0]
[128,null,null,null,null,null,null,null,null,null,null,null,null,null,0,null,null,null,"-",0]
[129,null,null,null,null,null,null,null,null,null,null,null,null,null,0,null,null,null,"-",0]
[{"$f":"ROW() - 5","v":130},null,null,null,null,null,null,null,null,null,null,null,null,null,0,null,null,null,"-",0]
[131,null,null,null,null,null,null,null,null,null,null,null,null,null,0,null,null,null,"-",0]
[132,null,null,null,null,null,null,null,null,null,null,null,null,null,0,null,null,null,"-",0]
[133,null,null,null,null,null,null,null,null,null,null,null,null,null,0,null,null,null,"-",0]
[134,null,null,null,null,null,null,null,null,null,null,null,null,null,0,null,null,null,"-",0]
[135,null,null,null,null,null,null,null,null,null,null,null,null,null,0,null,null,null,"-",0]
[136,null,null,null,null,null,null,null,null,null,null,null,null,null,0,null,null,null,"-",0]
[137,null,null,null,null,null,null,null,null,null,null,null,null,null,0,null,null,null,"-",0]
[138,null,null,null,null,null,null,null,null,null,null,null,null,null,0,null,null,null,"-",0]
[139,null,null,null,null,null,null,null,null,null,null,null,null,null,0,null,null,null,"-",0]
[140,null,null,null,null,null,null,null,null,null,null,null,null,null,0,null,null,null,"-",0]
[141,null,null,null,null,null,null,null,null,null,null,null,null,null,0,null,null,null,"-",0]
[142,null,null,null,null,null,null,null,null,null,null,null,null,null,0,null,null,null,"-",0]
[143,null,null,null,null,null,null,null,null,null,null,null,null,null,0,null,null,null,"-",0]
[144,null,null,null,null,null,null,null,null,null,null,null,null,null,0,null,null,null,"-",0]
[145,null,null,null,null,null,null,null,null,null,null,null,null,null,0,null,null,null,"-",0]
[146,null,null,null,null,null,null,null,null,null,null,null,null,null,0,null,null,null,"-",0]
[147,null,null,null,null,null,null,null,null,null,null,null,null,null,0,null,null,null,"-",0]
[148,null,null,null,null,null,null,null,null,null,null,null,null,null,0,null,null,null,"-",0]
[149,null,null,null,null,null,null,null,null,null,null,null,null,null,0,null,null,null,"-",0]
[150,null,null,null,null,null,null,null,null,null,null,null,null,null,0,null,null,null,"-",0]
[151,null,null,null,null,null,null,null,null,null,null,null,null,null,0,null,null,null,"-",0]
[152,null,null,null,null,null,null,null,null,null,null,null,null,null,0,null,null,null,"-",0]
[153,null,null,null,null,null,null,null,null,null,null,null,null,null,0,null,null,null,"-",0]
[154,null,null,null,null,null,null,null,null,null,null,null,null,null,0,null,null,null,"-",0]
[155,null,null,null,null,null,null,null,null,null,null,null,null,null,0,null,null,null,"-",0]
[156,null,null,null,null,null,null,null,null,null,null,null,null,null,0,null,null,null,"-",0]
[157,null,null,null,null,null,null,null,null,null,null,null,null,null,0,null,null,null,"-",0]
[158,null,null,null,null,null,null,null,null,null,null,null,null,null,0,null,null,null,"-",0]
[159,null,null,null,null,null,null,null,null,null,null,null,null,null,0,null,null,null,"-",0]
[160,null,null,null,null,null,null,null,null,null,null,null,null,null,0,null,null,null,"-",0]
[161,null,null,null,null,null,null,null,null,null,null,null,null,null,0,null,null,null,"-",0]
[162,null,null,null,null,null,null,null,null,null,null,null,null,null,0,null,null,null,"-",0]
[163,null,null,null,null,null,null,null,null,null,null,null,null,null,0,null,null,null,"-",0]
[164,null,null,null,null,null,null,null,null,null,null,null,null,null,0,null,null,null,"-",0]
[165,null,null,null,null,null,null,null,null,null,null,null,null,null,0,null,null,null,"-",0]
[166,null,null,null,null,null,null,null,null,null,null,null,null,null,0,null,null,null,"-",0]
[167,null,null,null,null,null,null,null,null,null,null,null,null,null,0,null,null,null,"-",0]
[168,null,null,null,null,null,null,null,null,null,null,null,null,null,0,null,null,null,"-",0]
[169,null,null,null,null,null,null,null,null,null,null,null,null,null,0,null,null,null,"-",0]
[170,null,null,null,null,null,null,null,null,null,null,null,null,null,0,null,null,null,"-",0]
[171,null,null,null,null,null,null,null,null,null,null,null,null,null,0,null,null,null,"-",0]
[172,null,null,null,null,null,null,null,null,null,null,null,null,null,0,null,null,null,"-",0]
[173,null,null,null,null,null,null,null,null,null,null,null,null,null,0,null,null,null,"-",0]
[174,null,null,null,null,null,null,null,null,null,null,null,null,null,0,null,null,null,"-",0]
[175,null,null,null,null,null,null,null,null,null,null,null,null,null,0,null,null,null,"-",0]
[176,null,null,null,null,null,null,null,null,null,null,null,null,null,0,null,null,null,"-",0]
[177,null,null,null,null,null,null,null,null,null,null,null,null,null,0,null,null,null,"-",0]
[178,null,null,null,null,null,null,null,null,null,null,null,null,null,0,null,null,null,"-",0]
[179,null,null,null,null,null,null,null,null,null,null,null,null,null,0,null,null,null,"-",0]
[180,null,null,null,null,null,null,null,null,null,null,null,null,null,0,null,null,null,"-",0]
[181,null,null,null,null,null,null,null,null,null,null,null,null,null,0,null,null,null,"-",0]
[182,null,null,null,null,null,null,null,null,null,null,null,null,null,0,null,null,null,"-",0]
[183,null,null,null,null,null,null,null,null,null,null,null,null,null,0,null,null,null,"-",0]
[184,null,null,null,null,null,null,null,null,null,null,null,null,null,0,null,null,null,"-",0]
[185,null,null,null,null,null,null,null,null,null,null,null,null,null,0,null,null,null,"-",0]
[186,null,null,null,null,null,null,null,null,null,null,null,null,null,0,null,null,null,"-",0]
[187,null,null,null,null,null,null,null,null,null,null,null,null,null,0,null,null,null,"-",0]
[188,null,null,null,null,null,null,null,null,null,null,null,null,null,0,null,null,null,"-",0]
[189,null,null,null,null,null,null,null,null,null,null,null,null,null,0,null,null,null,"-",0]
[190,null,null,null,null,null,null,null,null,null,null,null,null,null,0,null,null,null,"-",0]
[191,null,null,null,null,null,null,null,null,null,null,null,null,null,0,null,null,null,"-",0]
[192,null,null,null,null,null,null,null,null,null,null,null,null,null,0,null,null,null,"-",0]
[193,null,null,null,null,null,null,null,null,null,null,null,null,null,0,null,null,null,"-",0]
[{"$f":"ROW() - 5","v":194},null,null,null,null,null,null,null,null,null,null,null,null,null,0,null,null,null,"-",0]
[195,null,null,null,null,null,null,null,null,null,null,null,null,null,0,null,null,null,"-",0]
[196,null,null,null,null,null,null,null,null,null,null,null,null,null,0,null,null,null,"-",0]
[197,null,null,null,null,null,null,null,null,null,null,null,null,null,0,null,null,null,"-",0]
[198,null,null,null,null,null,null,null,null,null,null,null,null,null,0,null,null,null,"-",0]
[199,null,null,null,null,null,null,null,null,null,null,null,null,null,0,null,null,null,"-",0]
[200,null,null,null,null,null,null,null,null,null,null,null,null,null,0,null,null,null,"-",0]

{"sheet":"入力画面（技術者）","index":3,"n_rows":35,"n_cols":7,"rows_kept":35,"cut":false,"hidden":true,"merged":[[10,0,11,0],[12,0,23,0],[0,0,0,4],[6,1,6,2],[7,0,9,0],[7,1,7,2],[8,1,8,2],[9,1,9,2],[12,1,16,1],[17,1,20,1],[10,1,10,2],[11,1,11,2],[22,1,22,2],[23,1,23,2],[34,1,34,2],[25,1,25,2],[26,1,26,2],[24,1,24,2],[24,0,26,0],[32,0,33,0],[27,0,31,0],[27,1,27,2],[28,1,28,2],[29,1,29,2],[30,1,30,2],[31,1,31,2],[32,1,32,2],[33,1,33,2]]}
["入力画面（技術者）",null,null,null,null,null,"入力チェック"]
[]
[]
[]
["技術資格数登録内容（社員又は常勤役員が有する下記の資格の数を入力）"]
[]
["業種","資格",null,"資格数"]
["建築","一級建築士"]
[null,"二級建築士"]
[null,"その他"]
["測量","測量士"]
[null,"測量士補"]
["土木","技術士","建設部門"]
[null,null,"上下水道部門"]
[null,null,"環境部門"]
[null,null,"総合技術監理部門"]
[null,null,"その他"]
[null,"ＲＣＣＭ","道路"]
[null,null,"下水道"]
[null,null,"都市計画及び地方計画"]
[null,null,"その他"]
[null,"１級土木施工管理技士"]
[null,"２級土木施工管理技士"]
[null,"その他"]
["設備","電気"]
[null,"機械"]
[null,"その他"]
["補償","不動産鑑定士"]
[null,"土地家屋調査士"]
[null,"土地区画整理士"]
[null,"公用地取得実務経験者"]
[null,"補償業務管理士"]
["地質調査","港湾海洋調査士（危険物探査部門）"]
[null,"地質調査士"]
["磁気探査","磁気探査技士"]

{"sheet":"競争入札参加資格審査申請","index":4,"n_rows":22,"n_cols":23,"rows_kept":22,"cut":false,"hidden":true,"merged":[[15,1,17,1],[29,47,29,56],[30,22,30,26],[1,1,1,47],[9,2,9,4],[19,7,19,37],[21,7,21,17],[21,28,21,37],[9,7,9,34],[11,7,11,34],[12,7,12,34],[14,7,14,24],[15,7,15,24]]}
[]
[null,"競争入札参加資格審査申請（委託業務）"]
[]
[]
[null,null,null,"那　覇　市　長　　　",null,null,null,null,null,null,null,"宛"]
[]
[null,null,null,null,"那覇市が発注する測量及びコンサルタント業務等の入札参加資格を得たいので、関係書類を添えて資格審査申請します。               "]
[null,null,null,null,"なお、登録データーは別紙のとおりです。"]
[]
[null,null,"所在地又は住所",null,null,null,null,{"$f":"IF(ISBLANK(I01_本店都道府県名), \"\", IF(I01_本店都道府県コード=\"47 沖縄県\", \"\", I01_本店都道府県名)) & IF(ISBLANK(I01_本店市町村名),\"\",I01_本店市町村名) & IF(ISBLANK(I01_本店所在地), \"\", I01_本店所在地)","v":""}]
[]
[null,null,"（フリガナ）",null,null,null,null,{"$f":"ASC(IF(ISBLANK(I01_本店商号カナ), \"\", I01_本店商号カナ))","v":""}]
[null,null,"商号又は名称",null,null,null,null,{"$f":"DBCS(IF(ISBLANK(I01_本店商号), \"\", I01_本店商号))","v":""}]
[]
[null,null,"（フリガナ）",null,null,null,null,{"$f":"ASC(IF(ISBLANK(I01_本店代表者カナ), \"\", I01_本店代表者カナ))","v":""}]
[null,null,"代表者氏名",null,null,null,null,{"$f":"DBCS(IF(ISBLANK(I01_本店代表者名), \"\", I01_本店代表者名))","v":""}]
[]
[]
[null,null,"本書提出者"]
[null,null,null,"部署名等"]
[]
[null,null,null,"担当者氏名",null,null,null,null,null,null,null,null,null,null,null,null,null,null,null,null,null,null,"電話番号"]

{"sheet":"申請書（登録データ１，２） ","index":5,"n_rows":54,"n_cols":96,"rows_kept":54,"cut":false,"hidden":true,"merged":[[30,33,30,35],[33,74,34,91],[0,41,1,88],[35,38,37,54],[38,33,38,54],[22,52,22,54],[6,43,7,50],[7,58,9,59],[10,58,14,59],[0,32,1,33],[0,35,1,36],[0,37,1,37],[0,38,1,38],[0,39,1,39],[22,42,22,47],[22,49,22,50],[18,46,19,49],[3,32,3,55],[3,58,3,98],[7,60,9,64],[7,65,9,73],[7,74,9,78],[36,94,37,97],[36,86,37,93],[51,85,51,86],[53,81,53,82],[36,65,37,73],[36,74,37,77],[49,36,51,54],[48,36,48,39],[48,42,48,47],[48,49,48,50],[41,76,42,78],[39,59,40,64],[39,65,40,68],[39,69,40,70],[36,59,37,64],[36,81,37,85],[55,72,55,73],[44,36,45,44],[44,46,44,49],[44,50,45,54],[48,52,48,54],[51,58,52,60],[51,62,52,70],[53,70,53,71],[50,0,51,13],[51,14,52,14],[51,15,52,27],[51,28,52,29],[53,14,54,14],[53,15,54,27],[53,28,54,29],[48,0,49,13],[48,33,48,35],[49,14,50,14],[49,15,50,27],[49,28,50,29],[49,33,51,35],[44,33,44,34],[46,108,46,109],[46,110,46,111],[47,14,48,14],[47,15,48,27],[47,28,48,29],[45,0,46,0],[45,1,46,6],[45,7,46,9],[45,10,46,12],[45,14,46,14],[45,15,46,27],[46,58,46,64],[48,95,48,96],[48,83,48,84],[48,58,49,60],[48,62,49,70],[41,28,42,29],[42,33,42,54],[45,28,46,29],[45,33,45,34],[45,46,45,49],[39,33,41,39],[39,40,41,54],[39,28,40,29],[39,1,40,6],[39,7,40,9],[39,10,40,12],[39,14,40,14],[39,15,40,27],[43,46,43,49],[43,50,43,54],[43,33,43,34],[43,36,43,44],[35,0,36,0],[35,1,36,6],[35,7,36,9],[35,10,36,12],[35,14,36,14],[35,15,36,27],[35,28,36,29],[37,10,38,12],[43,15,44,27],[43,28,44,29],[43,0,44,0],[43,1,44,6],[43,7,44,9],[43,10,44,12],[43,14,44,14],[37,15,38,27],[37,28,38,29],[41,0,42,0],[41,1,42,6],[41,7,42,9],[41,10,42,12],[41,14,42,14],[41,15,42,27],[39,0,40,0],[31,1,31,6],[41,72,42,75],[41,59,42,71],[32,1,32,6],[32,7,32,9],[32,10,32,12],[32,15,32,27],[32,28,32,29],[33,0,34,0],[33,1,34,6],[33,7,34,9],[33,10,34,12],[33,14,34,14],[33,15,34,27],[33,28,34,29],[33,32,34,35],[31,7,31,9],[31,10,31,12],[31,15,31,27],[35,33,37,37],[37,0,38,0],[37,1,38,6],[37,7,38,9],[37,14,38,14],[24,0,25,0],[24,1,25,6],[24,7,25,9],[24,10,25,12],[24,14,25,14],[24,15,25,27],[29,0,30,0],[29,1,30,6],[29,7,30,9],[29,10,30,12],[29,14,30,14],[26,0,27,0],[26,1,27,6],[26,7,27,9],[26,10,27,12],[26,14,27,14],[26,15,27,27],[31,28,31,29],[33,59,34,70],[18,50,19,54],[18,33,19,35],[18,36,19,44],[29,15,30,27],[29,28,30,29],[24,28,25,29],[24,41,25,44],[24,45,25,50],[24,51,25,51],[24,52,25,53],[24,54,25,54],[26,28,27,29],[25,34,25,35],[18,14,19,29],[15,60,18,64],[15,65,18,73],[20,28,21,29],[29,36,30,54],[27,58,29,64],[27,65,29,97],[27,33,27,37],[27,38,27,54],[15,79,18,83],[15,84,18,88],[15,89,18,93],[8,32,8,37],[22,0,23,0],[22,1,23,6],[22,7,23,9],[22,10,23,12],[22,14,23,14],[22,15,23,27],[22,33,22,35],[22,37,22,39],[14,0,15,28],[14,33,15,37],[14,38,15,54],[22,28,23,29],[9,37,12,54],[20,0,21,0],[20,1,21,6],[20,7,21,9],[20,10,21,12],[20,14,21,14],[20,15,21,27],[18,0,19,6],[18,7,19,12],[2,0,2,6],[4,24,4,29],[5,0,5,3],[5,5,5,12],[5,13,5,15],[5,17,5,22],[5,24,12,29],[5,32,5,35],[5,58,6,59],[10,3,11,11],[10,13,11,22],[9,33,12,35],[6,0,6,3],[6,5,6,12],[6,13,6,15],[6,17,6,22],[6,51,7,54],[8,0,8,1],[8,2,9,3],[8,4,9,5],[8,6,9,7],[8,8,9,9],[8,10,9,22],[9,0,9,1],[6,39,7,41],[7,94,9,98],[5,84,6,88],[5,89,6,93],[5,94,6,98],[5,60,6,64],[5,65,6,73],[5,74,6,78],[5,79,6,83],[10,89,14,93],[10,94,14,98],[7,79,9,83],[7,84,9,88],[7,89,9,93],[15,94,18,98],[15,58,18,59],[19,58,22,59],[23,58,26,59],[10,60,14,64],[10,65,14,73],[10,74,14,78],[10,79,14,83],[10,84,14,88],[19,60,22,64],[19,65,22,73],[19,84,22,88],[19,94,22,98],[23,60,26,64],[23,65,26,73],[23,74,26,78],[23,79,26,83],[23,84,26,88],[23,89,26,93],[23,94,26,98],[19,89,22,93],[19,74,22,78],[19,79,22,83],[15,74,18,78]]}
[null,null,null,null,null,null,null,null,null,null,null,null,null,null,null,null,null,null,null,null,null,null,null,null,null,null,null,null,null,null,null,null,"B",null,null,{"$f":"IF(ISBLANK(I01_業者番号), \"\", MID(TEXT(VALUE(I01_業者番号),\"0000\"),1,1))","v":""},null,{"$f":"IF(ISBLANK(I01_業者番号), \"\", MID(TEXT(VALUE(I01_業者番号),\"0000\"),2,1))","v":""},{"$f":"IF(ISBLANK(I01_業者番号), \"\", MID(TEXT(VALUE(I01_業者番号),\"0000\"),3,1))","v":""},{"$f":"IF(ISBLANK(I01_業者番号), \"\", MID(TEXT(VALUE(I01_業者番号),\"0000\"),4,1))","v":""},null,{"$f":"TEXT(申請年度01,\"gee\") & IF(申請区分=1,\"・\" & TEXT(申請年度02,\"ee\"),\"\") & \"年度競争入札参加資格審査申請（委託業務・\" & IF(ISBLANK(I01_本店都道府県コード)=TRUE, \"\", IF(LEFT(I01_本店都道府県コード,2) = \"47\", \"県内\", \"県外\")) & \"）\"","v":"R06年度競争入札参加資格審査申請（委託業務・）"}]
[]
["那　覇　市　長　　　宛"]
[null,null,null,null,null,null,null,null,null,null,null,null,null,null,null,null,null,null,null,null,null,null,null,null,null,null,null,null,null,null,null,null,"登録データ　（その１）",null,null,null,null,null,null,null,null,null,null,null,null,null,null,null,null,null,null,null,null,null,null,null,null,null,"登録データ　（その２）"]
[null,null,null,null,null,null,null,null,null,null,null,null,null,null,null,null,null,null,null,null,null,null,null,null,"（印鑑証明書印）",null,null,null,null,null,null,null,null,null,null,null,null,null,null,null,null,null,null,null,null,null,null,null,null,null,null,null,null,null,null,null,null,null,"登録を希望する業種"]
["（フリガナ）",null,null,null,null,null,null,null,null,null,null,null,null,"（フリガナ）",null,null,null,null,null,null,null,null,null,null,null,null,null,null,null,null,null,null," 本店情報",null,null,null,null,null,null,null,null,null,null,null,null,null,null,null,null,null,null,null,null,null,null,null,null,null,"順位",null,"業種",null,null,null,null,"年間平均\n実績高（千円）",null,null,null,null,null,null,null,null,"業務内容１",null,null,null,null,"業務内容２",null,null,null,null,"業務内容３",null,null,null,null,"業務内容４",null,null,null,null,"業務内容５"]
["商号又は名称",null,null,null,null,null,null,null,null,null,null,null,null,"代表者氏名",null,null,null,null,null,null,null,null,null,null,null,null,null,null,null,null,null,null,null,null,null,null,null,null,null,"所在地区分",null,null,null,{"$f":"IF(ISBLANK(I01_本店都道府県コード),\"\",IF(I01_本店都道府県コード<>\"47 沖縄県\",\"県外\",IF(ISBLANK(I01_本店市町村コード),\"\",IF(I01_本店市町村コード=\"201 那覇市\",\"市内\",\"市外\"))))","v":""}]
[null,null,null,null,null,null,null,null,null,null,null,null,null,null,null,null,null,null,null,null,null,null,null,null,null,null,null,null,null,null,null,null,null,null,null,null,null,null,null,null,null,null,null,null,null,null,null,null,null,null,null,null,null,null,null,null,null,null,1,null,{"$f":"IF(ISBLANK(I02_業種01),\"\",MID(I02_業種01, 4, LEN(I02_業種01)))","v":""},null,null,null,null,{"$f":"IF(ISBLANK(I02_年間平均実績高01), \"\", I02_年間平均実績高01)","v":""},null,null,null,null,null,null,null,null,{"$f":"IF(ISBLANK(I02_業務内容011),\"\",MID(I02_業務内容011, 6, LEN(I02_業務内容011)))","v":""},null,null,null,null,{"$f":"IF(ISBLANK(I02_業務内容012),\"\",MID(I02_業務内容012, 6, LEN(I02_業務内容012)))","v":""},null,null,null,null,{"$f":"IF(ISBLANK(I02_業務内容013),\"\",MID(I02_業務内容013, 6, LEN(I02_業務内容013)))","v":""},null,null,null,null,{"$f":"IF(ISBLANK(I02_業務内容014),\"\",MID(I02_業務内容014, 6, LEN(I02_業務内容014)))","v":""},null,null,null,null,{"$f":"IF(ISBLANK(I02_業務内容015),\"\",MID(I02_業務内容015, 6, LEN(I02_業務内容015)))","v":""}]
["所在地",null,null,null,"都道府県",null,null,null,"市区町村"]
["住所",null,null,null,null,null,null,null,null,null,null,null,null,null,null,null,null,null,null,null,null,null,null,null,null,null,null,null,null,null,null,null,null,"商　号　：",null,null,null,{"$f":"DBCS(IF(ISBLANK(I01_本店商号), \"\", I01_本店商号))","v":""}]
[null,null,null,null,null,null,null,null,null,null,null,null,null,null,null,null,null,null,null,null,null,null,null,null,null,null,null,null,null,null,null,null,null,null,null,null,null,null,null,null,null,null,null,null,null,null,null,null,null,null,null,null,null,null,null,null,null,null,2,null,{"$f":"IF(ISBLANK(I02_業種02),\"\",MID(I02_業種02, 4, LEN(I02_業種02)))","v":""},null,null,null,null,{"$f":"IF(ISBLANK(I02_年間平均実績高02), \"\", I02_年間平均実績高02)","v":""},null,null,null,null,null,null,null,null,{"$f":"IF(ISBLANK(I02_業務内容021),\"\",MID(I02_業務内容021, 6, LEN(I02_業務内容021)))","v":""},null,null,null,null,{"$f":"IF(ISBLANK(I02_業務内容022),\"\",MID(I02_業務内容022, 6, LEN(I02_業務内容022)))","v":""},null,null,null,null,{"$f":"IF(ISBLANK(I02_業務内容023),\"\",MID(I02_業務内容023, 6, LEN(I02_業務内容023)))","v":""},null,null,null,null,{"$f":"IF(ISBLANK(I02_業務内容024),\"\",MID(I02_業務内容024, 6, LEN(I02_業務内容024)))","v":""},null,null,null,null,{"$f":"IF(ISBLANK(I02_業務内容025),\"\",MID(I02_業務内容025, 6, LEN(I02_業務内容025)))","v":""}]
["本書持参者",null,null,null,null,null,null,null,null,null,null,null,"TEL"]
[]
[]
["  那覇市が発注する建設工事のうち、下の業種について入札参加資格を得たいので関係書類を添えて資格審査申請をいたします。",null,null,null,null,null,null,null,null,null,null,null,null,null,null,null,null,null,null,null,null,null,null,null,null,null,null,null,null,null,null,null,null,"（商号フリガナ）",null,null,null,null,{"$f":"ASC(IF(ISBLANK(I01_本店商号カナ), \"\", I01_本店商号カナ))","v":""}]
[null,null,null,null,null,null,null,null,null,null,null,null,null,null,null,null,null,null,null,null,null,null,null,null,null,null,null,null,null,null,null,null,null,null,null,null,null,null,null,null,null,null,null,null,null,null,null,null,null,null,null,null,null,null,null,null,null,null,3,null,{"$f":"IF(ISBLANK(I02_業種03),\"\",MID(I02_業種03, 4, LEN(I02_業種03)))","v":""},null,null,null,null,{"$f":"IF(ISBLANK(I02_年間平均実績高03), \"\", I02_年間平均実績高03)","v":""},null,null,null,null,null,null,null,null,{"$f":"IF(ISBLANK(I02_業務内容031),\"\",MID(I02_業務内容031, 6, LEN(I02_業務内容031)))","v":""},null,null,null,null,{"$f":"IF(ISBLANK(I02_業務内容032),\"\",MID(I02_業務内容032, 6, LEN(I02_業務内容032)))","v":""},null,null,null,null,{"$f":"IF(ISBLANK(I02_業務内容033),\"\",MID(I02_業務内容033, 6, LEN(I02_業務内容033)))","v":""},null,null,null,null,{"$f":"IF(ISBLANK(I02_業務内容034),\"\",MID(I02_業務内容034, 6, LEN(I02_業務内容034)))","v":""},null,null,null,null,{"$f":"IF(ISBLANK(I02_業務内容035),\"\",MID(I02_業務内容035, 6, LEN(I02_業務内容035)))","v":""}]
["※ ●印が登録を希望する業種です。(ﾌﾟﾙﾀﾞｳﾝより選択）",null,null,null,null,null,null,null,null,null,null,null,null,null,"※ 提出書類は左側の□にﾁｪｯｸを入れてください。"]
[]
["業　　　　　種",null,null,null,null,null,null,"業　　　　　種",null,null,null,null,null,null,"　　　　　※　提出書類一覧表　※　　　　（市ﾁｪｯｸ）",null,null,null,null,null,null,null,null,null,null,null,null,null,null,null,null,null,null,"代 表 者",null,null,{"$f":"DBCS(IF(ISBLANK(I01_本店代表者名), \"\", I01_本店代表者名))","v":""},null,null,null,null,null,null,null,null,null,"（代表者ﾌﾘｶﾞﾅ）",null,null,null,{"$f":"ASC(IF(ISBLANK(I01_本店代表者カナ), \"\", I01_本店代表者カナ))","v":""}]
[null,null,null,null,null,null,null,null,null,null,null,null,null,null,null,null,null,null,null,null,null,null,null,null,null,null,null,null,null,null,null,null,null,null,null,null,null,null,null,null,null,null,null,null,null,null,null,null,null,null,null,null,null,null,null,null,null,null,4,null,{"$f":"IF(ISBLANK(I02_業種04),\"\",MID(I02_業種04, 4, LEN(I02_業種04)))","v":""},null,null,null,null,{"$f":"IF(ISBLANK(I02_年間平均実績高04), \"\", I02_年間平均実績高04)","v":""},null,null,null,null,null,null,null,null,{"$f":"IF(ISBLANK(I02_業務内容041),\"\",MID(I02_業務内容041, 6, LEN(I02_業務内容041)))","v":""},null,null,null,null,{"$f":"IF(ISBLANK(I02_業務内容042),\"\",MID(I02_業務内容042, 6, LEN(I02_業務内容042)))","v":""},null,null,null,null,{"$f":"IF(ISBLANK(I02_業務内容043),\"\",MID(I02_業務内容043, 6, LEN(I02_業務内容043)))","v":""},null,null,null,null,{"$f":"IF(ISBLANK(I02_業務内容044),\"\",MID(I02_業務内容044, 6, LEN(I02_業務内容044)))","v":""},null,null,null,null,{"$f":"IF(ISBLANK(I02_業務内容045),\"\",MID(I02_業務内容045, 6, LEN(I02_業務内容045)))","v":""}]
["○","01  土木",null,null,null,null,null,"○",null,null,"15　板金",null,null,null,null,"印鑑証明書（原本）",null,null,null,null,null,null,null,null,null,null,null,null,"□"]
[]
["○","02  建築",null,null,null,null,null,"○",null,null,"16　ガラス",null,null,null,null,"委任状・使用印鑑届（原本）",null,null,null,null,null,null,null,null,null,null,null,null,"□",null,null,null,null,"郵便番号",null,null,null,{"$f":"ASC(IF(OR(ISBLANK(I01_本店郵便番号01), ISBLANK(I01_本店郵便番号02)), \"\", TEXT(I01_本店郵便番号01,\"000\") & \"-\" & TEXT(I01_本店郵便番号02,\"0000\")))","v":""},null,null,null,"TEL",{"$f":"ASC(IF(ISBLANK(I01_本店電話番号), \"\", I01_本店電話番号))","v":""},null,null,null,null,null,null,"FAX",null,null,{"$f":"ASC(IF(ISBLANK(I01_本店FAX番号), \"\", I01_本店FAX番号))","v":""}]
[null,null,null,null,null,null,null,null,null,null,null,null,null,null,null,null,null,null,null,null,null,null,null,null,null,null,null,null,null,null,null,null,null,null,null,null,null,null,null,null,null,null,null,null,null,null,null,null,null,null,null,null,null,null,null,null,null,null,5,null,{"$f":"IF(ISBLANK(I02_業種05),\"\",MID(I02_業種05, 4, LEN(I02_業種05)))","v":""},null,null,null,null,{"$f":"IF(ISBLANK(I02_年間平均実績高05), \"\", I02_年間平均実績高05)","v":""},null,null,null,null,null,null,null,null,{"$f":"IF(ISBLANK(I02_業務内容051),\"\",MID(I02_業務内容051, 6, LEN(I02_業務内容051)))","v":""},null,null,null,null,{"$f":"IF(ISBLANK(I02_業務内容052),\"\",MID(I02_業務内容052, 6, LEN(I02_業務内容052)))","v":""},null,null,null,null,{"$f":"IF(ISBLANK(I02_業務内容053),\"\",MID(I02_業務内容053, 6, LEN(I02_業務内容053)))","v":""},null,null,null,null,{"$f":"IF(ISBLANK(I02_業務内容054),\"\",MID(I02_業務内容054, 6, LEN(I02_業務内容054)))","v":""},null,null,null,null,{"$f":"IF(ISBLANK(I02_業務内容055),\"\",MID(I02_業務内容055, 6, LEN(I02_業務内容055)))","v":""}]
["○","03　大工",null,null,null,null,null,"○",null,null,"17　塗装",null,null,null,null,"建設業許可証明書",null,null,null,null,null,null,null,null,null,null,null,null,"□",null,null,null,null,null,null,null,null,null,null,null,null,"緊急連絡先\n（携帯電話）",null,null,null,{"$f":"ASC(IF(ISBLANK(I01_本店緊急連絡先), \"\", I01_本店緊急連絡先))","v":""},null,null,null,null,null,"（",{"$f":"IF(ISBLANK(I01_本店緊急連絡先氏名), \"\", I01_本店緊急連絡先氏名)","v":""},null,"）"]
[]
["○","04　左官",null,null,null,null,null,"○",null,null,"18　防水",null,null,null,null,"経営事項審査結果通知書",null,null,null,null,null,null,null,null,null,null,null,null,"□"]
[null,null,null,null,null,null,null,null,null,null,null,null,null,null,null,null,null,null,null,null,null,null,null,null,null,null,null,null,null,null,null,null,null,"メールアドレス",null,null,null,null,{"$f":"ASC(LOWER(IF(ISBLANK(I01_本店メールアドレス), \"\", I01_本店メールアドレス)))","v":""},null,null,null,null,null,null,null,null,null,null,null,null,null,null,null,null,null,null,null,"業種「その他」の\n具体的な業務内容",null,null,null,null,null,null,{"$f":"IF(ISBLANK(I02_業務内容その他メモ), \"\", I02_業務内容その他メモ)","v":""}]
[]
["○","05　とび・土工",null,null,null,null,null,"○",null,null,"19　内装仕上",null,null,null,null,"技術職員有資格者名簿",null,null,null,null,null,null,null,null,null,null,null,null,"□",null,null,null,null,null,null,null,{"$f":"IF(ISBLANK(I01_本店都道府県名), \"\", IF(I01_本店都道府県コード=\"47 沖縄県\", \"\", I01_本店都道府県名)) & IF(ISBLANK(I01_本店市町村名),\"\",I01_本店市町村名) & IF(ISBLANK(I01_本店所在地), \"\", I01_本店所在地)","v":""}]
[null,null,null,null,null,null,null,null,null,null,null,null,null,null,null,null,null,null,null,null,null,null,null,null,null,null,null,null,null,null,null,null,null,"所在地"]
["○","06　石",null,null,null,null,null,"○",null,null,"20　機械器具設置",null,null,null,null,"工事経歴書",null,null,null,null,null,null,null,null,null,null,null,null,"□",null,null,null,null,null,null,null,null,null,null,null,null,null,null,null,null,null,null,null,null,null,null,null,null,null,null,null,null,null,"経営規模等総括表登録内容"]
["○","07  屋根",null,null,null,null,null,"○",null,null,"21　熱絶縁",null,null,null,null,"登記簿謄本 （履歴事項全部証明書）                                                                                                                                                        （法人のみ）",null,null,null,null,null,null,null,null,null,null,null,null,"□"]
["○","08　電気",null,null,null,null,null,"○",null,null,"22　電気通信",null,null,null,null,"身分証明書・登記されていないことの証明書\n（個人事業者のみ）",null,null,null,null,null,null,null,null,null,null,null,null,"□",null,null,null,"支店情報",null,null,null,null,null,null,null,null,null,null,null,null,null,null,null,null,null,null,null,null,null,null,null,null,null,null,"大 中 小 企 業 別 ",null,null,null,null,null,null,null,null,null,null,null,null,null,null,{"$f":"IF(ISBLANK(I02_大中小企業別),\"\",MID(I02_大中小企業別, 4, LEN(I02_大中小企業別)))","v":""}]
[]
["○","09　管",null,null,null,null,null,"○",null,null,"23　造園",null,null,null,null,"本店等所在地位置図",null,null,null,null,null,null,null,null,null,null,null,null,"□",null,null,null,null,"支店・営業所名",null,null,null,null,{"$f":"DBCS(IF(ISBLANK(I01_支店商号), \"\", I01_支店商号))","v":""}]
[null,null,null,null,null,null,null,null,null,null,null,null,null,null,null,null,null,null,null,null,null,null,null,null,null,null,null,null,null,null,null,null,null,null,null,null,null,null,null,null,null,null,null,null,null,null,null,null,null,null,null,null,null,null,null,null,null,null,null,"資本金",null,null,null,null,null,{"$f":"IF(ISBLANK(I02_資本金), \"\", I02_資本金)","v":""},null,null,null,null,null,null,null,null,"（千円）",null,null,null,null,null,null,"自己資本",null,null,null,null,{"$f":"IF(ISBLANK(I02_自己資本), \"\", I02_自己資本)","v":""},null,null,null,null,null,null,null,"（千円）"]
["○","10　ﾀｲﾙ･ﾚﾝｶﾞ･ﾌﾞﾛｯｸ",null,null,null,null,null,"○",null,null,"24　さく井",null,null,null,null,"市税完納証明書（那覇市市民税課発行）",null,null,null,null,null,null,null,null,null,null,null,null,"□"]
[]
["○","11　鋼構造物",null,null,null,null,null,"○",null,null,"25　建具",null,null,null,null,"IOS・ｴｺｱｸｼｮﾝ21認証取得証明書",null,null,null,null,null,null,null,null,null,null,null,null,"□",null,null,null,null,"（支店・営業所フリガナ）",null,null,null,null,null,null,{"$f":"ASC(IF(ISBLANK(I01_支店商号カナ), \"\", I01_支店商号カナ))","v":""},null,null,null,null,null,null,null,null,null,null,null,null,null,null,null,null,null,null,"営業年数",null,null,null,null,null,{"$f":"IF(ISBLANK(I02_営業年数), \"\", I02_営業年数)","v":""},null,null,null,"年"]
[]
["○","12　鉄筋",null,null,null,null,null,"-",null,null,"  -",null,null,null,null,"ボランティア等",null,null,null,null,null,null,null,null,null,null,null,null,"□",null,null,null,null,null,null,null,null,null,null,null,null,null,null,null,null,null,null,null,null,null,null,null,null,null,null,null,null,null,null,"（　那覇市内での営業年数",null,null,null,null,null,null,null,null,null,null,null,null,{"$f":"IF(ISBLANK(I02_市内営業年数), \"\", I02_市内営業年数)","v":""},null,null,null,"年　）"]
[]
["○","13　ほ装",null,null,null,null,null,"○",null,null,"27　消防施設",null,null,null,null,"労働保険証明書（県内事業者のみ）",null,null,null,null,null,null,null,null,null,null,null,null,"□",null,null,null,null,"支店長",null,null,null,null,null,null,null,null,null,null,null,null,"（支店長フリガナ）",null,null,null,null,null,null,null,null,null,null,null,null,null,null,"　※那覇市内で本店が現在営業している年数"]
[null,null,null,null,null,null,null,null,null,null,null,null,null,null,null,null,null,null,null,null,null,null,null,null,null,null,null,null,null,null,null,null,null,null,null,null,{"$f":"DBCS(IF(ISBLANK(I01_支店代表者名), \"\", I01_支店代表者名))","v":""},null,null,null,null,null,null,null,null,null,null,null,null,null,{"$f":"ASC(IF(ISBLANK(I01_支店代表者カナ), \"\", I01_支店代表者カナ))","v":""}]
["○","14　しゅんせつ",null,null,null,null,null,"○",null,null,"28　清掃施設",null,null,null,null,"健康保険・厚生年金（加入・納入）証明書\n（県内事業者のみ）",null,null,null,null,null,null,null,null,null,null,null,null,"□",null,null,null,null,"所  長",null,null,null,null,null,null,null,null,null,null,null,null,"（所  長フリガナ）"]
[null,null,null,null,null,null,null,null,null,null,null,null,null,null,null,null,null,null,null,null,null,null,null,null,null,null,null,null,null,null,null,null,null,null,null,null,null,null,null,null,null,null,null,null,null,null,null,null,null,null,null,null,null,null,null,null,null,null,"税登録内容",null,null,null,null,null,null,null,null,null,null,null,null,null,null,null,"保険等登録内容"]
[null,null,null,null,null,null,null,null,null,null,null,null,null,null,null,"障害者雇用状況報告書",null,null,null,null,null,null,null,null,null,null,null,null,"□"]
["※裏面の業種別データのコード欄には、上記各業種コードを記入してください。",null,null,null,null,null,null,null,null,null,null,null,null,null,null,null,null,null,null,null,null,null,null,null,null,null,null,null,null,null,null,null,null,"郵便番号",null,null,{"$f":"ASC(IF(OR(ISBLANK(I01_支店郵便番号01), ISBLANK(I01_支店郵便番号02)), \"\", TEXT(I01_支店郵便番号01,\"000\") & \"-\" & TEXT(I01_支店郵便番号02,\"0000\")))","v":""},null,null,null,null,"TEL",{"$f":"ASC(IF(ISBLANK(I01_支店電話番号), \"\", I01_支店電話番号))","v":""},null,null,null,null,null,null,"FAX",null,null,{"$f":"ASC(IF(ISBLANK(I01_支店FAX番号), \"\", I01_支店FAX番号))","v":""},null,null,null,null,null,"那覇市課税",null,null,null,{"$f":"IF(ISBLANK(I02_市課税),\"\",MID(I02_市課税, 4, LEN(I02_市課税)))","v":""},null,null,null,null,null,null,null,null,null,null,null,null,"労働災害保険",null,null,null,null,null,null,null,{"$f":"IF(ISBLANK(I02_労災),\"\",MID(I02_労災, 4, LEN(I02_労災)))","v":""},null,null,null,null,null,"雇用保険",null,null,null,null,null,{"$f":"IF(ISBLANK(I02_雇用保険),\"\",MID(I02_雇用保険, 4, LEN(I02_雇用保険)))","v":""}]
[null,null,null,null,null,null,null,null,null,null,null,null,null,null,null,"納税証明書（法人税・消費税等）",null,null,null,null,null,null,null,null,null,null,null,null,"□",null,null,null,null,"所在地",null,null,{"$f":"IF(ISBLANK(I01_支店都道府県名), \"\", IF(I01_支店都道府県コード=\"47 沖縄県\", \"\", I01_支店都道府県名)) & IF(ISBLANK(I01_支店市町村名),\"\",I01_支店市町村名) & IF(ISBLANK(I01_支店所在地), \"\", I01_支店所在地)","v":""}]
["※建設業の許可と経営事項審査を受けた業種を選択してく\n　ださい。"]
[null,null,null,null,null,null,null,null,null,null,null,null,null,null,null,"健康保険・厚生年金保険被保険者標準報酬決定通知書（県内事業者のみ）",null,null,null,null,null,null,null,null,null,null,null,null,"□",null,null,null,null,null,null,null,null,null,null,null,null,null,null,null,null,null,null,null,null,null,null,null,null,null,null,null,null,null,"消  費  税",null,null,null,{"$f":"IF(ISBLANK(I02_消費税),\"\",MID(I02_消費税, 4, LEN(I02_消費税)))","v":""},null,null,null,null,null,null,null,null,null,null,null,null,"健康保険・厚生年金",null,null,null,null,null,null,null,null,null,{"$f":"IF(ISBLANK(I02_健保厚生),\"\",MID(I02_健保厚生, 4, LEN(I02_健保厚生)))","v":""}]
[]
[null,null,null,null,null,null,null,null,null,null,null,null,null,null,null,"82円切手（合否通知用）",null,null,null,null,null,null,null,null,null,null,null,null,"□"]

{"sheet":"申請書（登録データ３) ","index":6,"n_rows":44,"n_cols":62,"rows_kept":44,"cut":false,"hidden":true,"merged":[[36,73,37,73],[42,71,43,72],[42,73,43,73],[36,69,37,69],[40,73,41,73],[30,73,31,73],[36,68,37,68],[22,71,23,72],[38,69,39,69],[34,71,35,72],[36,71,37,72],[38,71,39,72],[22,69,23,69],[32,69,33,69],[34,69,35,69],[40,71,41,72],[32,71,33,72],[24,73,25,73],[24,68,25,68],[24,71,25,72],[28,71,29,72],[30,71,31,72],[24,69,25,69],[28,69,29,69],[0,1,2,4],[0,7,2,9],[0,10,2,12],[0,13,2,15],[0,16,2,18],[3,1,4,65],[0,20,2,71],[10,68,11,68],[10,73,11,73],[7,1,8,17],[8,68,9,68],[8,73,9,73],[9,15,11,17],[6,69,7,69],[6,70,7,70],[6,71,7,72],[6,73,7,73],[8,69,9,69],[10,69,11,69],[8,71,9,72],[10,71,11,72],[9,1,11,14],[7,18,8,34],[9,18,11,31],[43,1,45,3],[43,4,45,6],[43,7,45,9],[43,10,45,12],[43,13,45,15],[43,16,45,18],[24,55,26,57],[24,58,26,60],[24,61,26,63],[43,25,45,27],[24,4,26,6],[24,7,26,9],[24,10,26,12],[24,19,26,21],[24,22,26,24],[24,25,26,27],[24,40,26,42],[24,43,26,45],[24,13,26,15],[24,16,26,18],[41,1,42,3],[30,69,31,69],[34,73,35,73],[34,68,35,68],[32,68,33,68],[32,73,33,73],[28,73,29,73],[28,68,29,68],[30,68,31,68],[22,1,23,3],[22,4,23,6],[22,7,23,9],[28,1,29,3],[28,4,29,18],[30,1,40,3],[30,4,42,6],[30,7,42,9],[30,10,42,12],[30,13,42,15],[24,1,26,3],[30,16,42,18],[16,13,23,15],[16,16,23,18],[16,4,21,9],[16,10,23,12],[9,32,11,34],[7,35,8,51],[9,35,11,51],[16,46,21,51],[18,34,23,36],[18,37,23,39],[15,4,15,9],[15,10,15,12],[15,19,17,33],[15,34,17,45],[18,43,23,45],[18,40,23,42],[18,19,23,21],[18,22,23,24],[18,25,23,27],[18,28,23,30],[18,31,23,33],[14,1,14,3],[14,4,14,12],[15,1,21,3],[18,69,19,69],[16,73,17,73],[18,73,19,73],[12,73,13,73],[40,69,41,69],[16,55,23,57],[16,58,23,60],[16,61,23,63],[20,71,20,72],[21,71,21,72],[22,73,23,73],[22,68,23,68],[38,68,39,68],[38,73,39,73],[12,71,13,72],[16,71,17,72],[18,71,19,72],[16,68,17,68],[18,68,19,68],[12,68,13,68],[12,69,13,69],[16,69,17,69],[16,52,23,54],[14,13,14,18],[14,19,14,54],[14,55,14,63],[30,19,42,21],[30,22,42,24],[28,19,29,24],[30,25,42,27],[28,25,29,27],[22,46,23,48],[22,49,23,51],[24,46,26,48],[24,49,26,51],[42,68,43,68],[43,19,45,21],[43,22,45,24],[24,52,26,54],[27,61,29,63],[27,64,29,66],[24,28,26,30],[24,31,26,33],[24,34,26,36],[24,37,26,39]]}
[null,"B",null,null,null,null,null,{"$f":"IF(ISBLANK(I01_業者番号), \"\", MID(TEXT(VALUE(I01_業者番号),\"0000\"),1,1))","v":""},null,null,{"$f":"IF(ISBLANK(I01_業者番号), \"\", MID(TEXT(VALUE(I01_業者番号),\"0000\"),2,1))","v":""},null,null,{"$f":"IF(ISBLANK(I01_業者番号), \"\", MID(TEXT(VALUE(I01_業者番号),\"0000\"),3,1))","v":""},null,null,{"$f":"IF(ISBLANK(I01_業者番号), \"\", MID(TEXT(VALUE(I01_業者番号),\"0000\"),4,1))","v":""},null,null,null,{"$f":"TEXT(申請年度01,\"gee\") & IF(申請区分=1,\"・\" & TEXT(申請年度02,\"ee\"),\"\") & \"年度競争入札参加資格審査申請（委託業務・\" & IF(ISBLANK(I01_本店都道府県コード)=TRUE, \"\", IF(LEFT(I01_本店都道府県コード,2) = \"47\", \"県内\", \"県外\")) & \"）\"","v":"R06年度競争入札参加資格審査申請（委託業務・）"}]
[]
[]
[null,"登録ﾃﾞｰﾀ（その3）"]
[]
[]
[null,"雇用の規模及び障害者雇用人数"]
[null,"雇用の規模",null,null,null,null,null,null,null,null,null,null,null,null,null,null,null,null,"常用雇用障害者の数",null,null,null,null,null,null,null,null,null,null,null,null,null,null,null,null,"障害者法定雇用義務の達成状況"]
[]
[null,{"$f":"I02_雇用の規模","v":0},null,null,null,null,null,null,null,null,null,null,null,null,null,"人",null,null,{"$f":"I02_障害者雇用数","v":0},null,null,null,null,null,null,null,null,null,null,null,null,null,"人",null,null,{"$f":"IF(ISBLANK(I02_障害者雇用義務),\"\",MID(I02_障害者雇用義務, 4, LEN(I02_障害者雇用義務)) & IF(AND(障害者雇用義務従業員数 <= I02_雇用の規模,LEFT(I02_障害者雇用義務, 2)=\"09\"), ,\"\"))","v":"義務無し"}]
[]
[]
[]
[null,"　　　技術資格数登録内容"]
[null,"種",null,null,"建築",null,null,null,null,null,null,null,null,"測量",null,null,null,null,null,"土木",null,null,null,null,null,null,null,null,null,null,null,null,null,null,null,null,null,null,null,null,null,null,null,null,null,null,null,null,null,null,null,null,null,null,null,"設備"]
[null,"資　格",null,null,null,null,null,null,null,null,null,null,null,null,null,null,null,null,null,"技術士",null,null,null,null,null,null,null,null,null,null,null,null,null,null,"ＲＣＣＭ"]
[null,null,null,null,"建築士",null,null,null,null,null,"その他",null,null,"測量士",null,null,"測量士補",null,null,null,null,null,null,null,null,null,null,null,null,null,null,null,null,null,null,null,null,null,null,null,null,null,null,null,null,null,"土木施工管理技士",null,null,null,null,null,"その他",null,null,"電気",null,null,"機械",null,null,"その他"]
[]
[null,null,null,null,null,null,null,null,null,null,null,null,null,null,null,null,null,null,null,"建設部門",null,null,"上下水道部門",null,null,"環境部門",null,null,"総合技術監理部門",null,null,"その他",null,null,"道路",null,null,"下水道",null,null,"都市計画及び地方計画",null,null,"その他"]
[]
[]
[]
[null,"級種",null,null,1,null,null,2,null,null,null,null,null,null,null,null,null,null,null,null,null,null,null,null,null,null,null,null,null,null,null,null,null,null,null,null,null,null,null,null,null,null,null,null,null,null,1,null,null,2]
[]
[null,"資格数",null,null,0,null,null,0,null,null,0,null,null,0,null,null,0,null,null,0,null,null,0,null,null,0,null,null,0,null,null,0,null,null,0,null,null,0,null,null,0,null,null,0,null,null,0,null,null,0,null,null,0,null,null,0,null,null,0,null,null,0]
[]
[]
[]
[null,"種",null,null,"補償",null,null,null,null,null,null,null,null,null,null,null,null,null,null,"地質調査",null,null,null,null,null,"磁気\n探査"]
[]
[null,"　資　格",null,null,"不動産鑑定士",null,null,"土地家屋調査士",null,null,"土地区画整理士",null,null,"公用地取得実務経験者",null,null,"補償業務管理士",null,null,"港湾海洋調査士\n　（危険物探査部門）",null,null,"地質調査士",null,null,"磁気探査技士"]
[]
["　"]
[]
[]
[]
[]
[]
[]
[]
[]
[null,"級種"]
[]
[null,"資格数",null,null,0,null,null,0,null,null,0,null,null,0,null,null,0,null,null,0,null,null,0,null,null,0]

{"sheet":"技術資格者名簿","index":7,"n_rows":29,"n_cols":26,"rows_kept":29,"cut":false,"hidden":true,"merged":[[8,4,8,13],[13,19,13,24],[13,14,13,17],[12,19,12,24],[12,14,12,17],[11,19,11,24],[11,14,11,17],[10,19,10,24],[10,14,10,17],[9,19,9,24],[9,14,9,17],[15,19,15,24],[15,14,15,17],[14,19,14,24],[14,14,14,17],[8,14,8,24],[18,19,18,24],[18,14,18,17],[17,19,17,24],[17,14,17,17],[16,19,16,24],[16,14,16,17],[21,14,21,17],[20,19,20,24],[20,14,20,17],[19,19,19,24],[19,14,19,17],[5,2,5,7],[0,0,0,13],[6,9,6,12],[27,19,27,24],[27,14,27,17],[26,19,26,24],[26,14,26,17],[25,19,25,24],[25,14,25,17],[24,19,24,24],[24,14,24,17],[23,19,23,24],[23,14,23,17],[22,19,22,24],[22,14,22,17],[21,19,21,24]]}
[" 技　術　職　員　有　資　格　者　名　簿"]
[]
[]
[null,"業者番号",{"$f":" \"B-\" & IF(ISBLANK(I01_業者番号), \"\",TEXT(I01_業者番号,\"0000\"))","v":"B-"}]
[]
[null,"申請者の\n商号名称",{"$f":"DBCS(IF(ISBLANK(I01_本店商号), \"\", I01_本店商号))","v":""}]
[null,null,null,null,null,null,null,null,null,{"$f":"IF(ISBLANK(I03_入力日),TEXT(TODAY(),\"ggg    年    月    日\"), I03_入力日)","v":"2023-12-01"},null,null,null," 現在"]
[]
["No.","氏名","フリガナ(カタカナで記入)","生年月日","有資格者区分コード\n＊別紙「資格区分コード表」に記載されているコードのみ対象",null,null,null,null,null,null,null,null,null,"基礎年金番号",null,null,null,null,null,null,null,null,null,null,"監理技術者資格者証所有の有無"]
[{"$f":"ROW() - 9","v":1},null,null,null,null,null,null,null,null,null,null,null,null,null,0,null,null,null,"-",0]
[2,null,null,null,null,null,null,null,null,null,null,null,null,null,0,null,null,null,"-",0]
[3,null,null,null,null,null,null,null,null,null,null,null,null,null,0,null,null,null,"-",0]
[4,null,null,null,null,null,null,null,null,null,null,null,null,null,0,null,null,null,"-",0]
[5,null,null,null,null,null,null,null,null,null,null,null,null,null,0,null,null,null,"-",0]
[6,null,null,null,null,null,null,null,null,null,null,null,null,null,0,null,null,null,"-",0]
[7,null,null,null,null,null,null,null,null,null,null,null,null,null,0,null,null,null,"-",0]
[8,null,null,null,null,null,null,null,null,null,null,null,null,null,0,null,null,null,"-",0]
[9,null,null,null,null,null,null,null,null,null,null,null,null,null,0,null,null,null,"-",0]
[10,null,null,null,null,null,null,null,null,null,null,null,null,null,0,null,null,null,"-",0]
[11,null,null,null,null,null,null,null,null,null,null,null,null,null,0,null,null,null,"-",0]
[12,null,null,null,null,null,null,null,null,null,null,null,null,null,0,null,null,null,"-",0]
[13,null,null,null,null,null,null,null,null,null,null,null,null,null,0,null,null,null,"-",0]
[14,null,null,null,null,null,null,null,null,null,null,null,null,null,0,null,null,null,"-",0]
[15,null,null,null,null,null,null,null,null,null,null,null,null,null,0,null,null,null,"-",0]
[16,null,null,null,null,null,null,null,null,null,null,null,null,null,0,null,null,null,"-",0]
[17,null,null,null,null,null,null,null,null,null,null,null,null,null,0,null,null,null,"-",0]
[18,null,null,null,null,null,null,null,null,null,null,null,null,null,0,null,null,null,"-",0]
[19,null,null,null,null,null,null,null,null,null,null,null,null,null,0,null,null,null,"-",0]
[20]

{"sheet":"マスタ","index":8,"n_rows":106,"n_cols":36,"rows_kept":106,"cut":false,"hidden":true,"merged":[]}
["各種設定",null,null,null,"都道府県マスタ","コード","都道府県名",null,"市町村マスタ","コード","市町村名",null,"委託業種マスタ","コード","名称",null,"業務内容マスタ","コード","名称",null,"業務内容\nドロップダウンリスト用クロス表",{"$f":"SUBSTITUTE(\"業務内容\" & M2, \" \", \"\")","v":"業務内容51測量"},{"$f":"SUBSTITUTE(\"業務内容\" & M3, \" \", \"\")","v":"業務内容52建築関係建設コンサルタント業務"},{"$f":"SUBSTITUTE(\"業務内容\" & M4, \" \", \"\")","v":"業務内容53土木関係建設コンサルタント業務"},{"$f":"SUBSTITUTE(\"業務内容\" & M5, \" \", \"\")","v":"業務内容54地質調査業務"},{"$f":"SUBSTITUTE(\"業務内容\" & M6, \" \", \"\")","v":"業務内容55補償関係コンサルタント"},{"$f":"SUBSTITUTE(\"業務内容\" & M7, \" \", \"\")","v":"業務内容56設備設計コンサルタント業務"},{"$f":"SUBSTITUTE(\"業務内容\" & M8, \" \", \"\")","v":"業務内容57磁気探査調査業務"},{"$f":"SUBSTITUTE(\"業務内容\" & M9, \" \", \"\")","v":"業務内容58気象関係コンサルタント業務"},{"$f":"SUBSTITUTE(\"業務内容\" & M10, \" \", \"\")","v":"業務内容61その他"},null,"資格区分マスタ","コード","資格名"]
["設定項目","設定値","入力方法・備考",null,{"$f":"TEXT(F2,\"00 \") & G2","v":"01 北海道"},1,"北海道",null,{"$f":"TEXT(J2,\"00 \") & K2","v":"201 那覇市"},201,"那覇市",null,{"$f":"TEXT(N2,\"00 \") & O2","v":"51 測量"},51,"測量",null,{"$f":"TEXT(R2,\"00 \") & S2","v":"5101 測量一般"},5101,"測量一般",null,null,{"$f":"Q2","v":"5101 測量一般"},{"$f":"Q6","v":"5201 建築一般"},{"$f":"Q12","v":"5301 土質及び基礎"},{"$f":"Q23","v":"5401 地質調査"},{"$f":"Q24","v":"5501 物件権利調査"},{"$f":"Q30","v":"5601 暖冷房"},{"$f":"Q36","v":"5701 磁気探査調査"},{"$f":"Q37","v":"5801 気象関係ｺﾝｻﾙﾀﾝﾄ"},{"$f":"Q38","v":"6101 その他"},null,{"$f":"TEXT(AG2,\"000 \") & AH2","v":"137 一級建築士"},137,"一級建築士","建築","一級建築士"]
["保護パスワード","7a8a","半角英数字で入力",null,{"$f":"TEXT(F3,\"00 \") & G3","v":"02 青森県"},2,"青森県",null,{"$f":"TEXT(J3,\"00 \") & K3","v":"205 宜野湾市"},205,"宜野湾市",null,{"$f":"TEXT(N3,\"00 \") & O3","v":"52 建築関係建設コンサルタント業務"},52,"建築関係建設コンサルタント業務",null,{"$f":"TEXT(R3,\"00 \") & S3","v":"5102 地図の調整"},5102,"地図の調整",null,null,{"$f":"Q3","v":"5102 地図の調整"},{"$f":"Q7","v":"5202 意匠"},{"$f":"Q13","v":"5302 鋼構造及びコンクリ－ト"},null,{"$f":"Q25","v":"5502 事業関連調査"},"5602 衛生",null,null,null,null,{"$f":"TEXT(AG3,\"000 \") & AH3","v":"078 設備設計一級建築士"},78,"設備設計一級建築士",null,"設備設計一級建築士"]
["入力項目背景色",null,null,null,"03 岩手県",3,"岩手県",null,"207 石垣市",207,"石垣市",null,"53 土木関係建設コンサルタント業務",53,"土木関係建設コンサルタント業務",null,"5103 航空測量",5103,"航空測量",null,null,"5103 航空測量","5203 構造","5303 河川砂防及び海岸・海洋",null,{"$f":"Q26","v":"5503 登記手続等"},"5603 電気",null,null,null,null,"079 構造設計一級建築士",79,"構造設計一級建築士",null,"構造設計一級建築士"]
["入力不可項目背景色",null,null,null,"04 宮城県",4,"宮城県",null,"208 浦添市",208,"浦添市",null,"54 地質調査業務",54,"地質調査業務",null,"5104 その他測量",5104,"その他測量",null,null,"5104 その他測量","5204 建築積算","5304 発電土木",null,{"$f":"Q27","v":"5504 営業補償"},"5604 機械設備積算",null,null,null,null,"238 二級建築士",238,"二級建築士",null,"二級建築士"]
["申請区分",2,"定期申請：1　　中間申請：2",null,"05 秋田県",5,"秋田県",null,"209 名護市",209,"名護市",null,"55 補償関係コンサルタント",55,"補償関係コンサルタント",null,"5201 建築一般",5201,"建築一般",null,null,null,"5205 調査","5305 道路",null,"5505 土地評価","5605 電気設備積算",null,null,null,null,"239 二級建築士",239,"二級建築士",null,"木造建築士"]
["申請年度１","2024-04-01","年度＋『４月１日で入力』",null,"06 山形県",6,"山形県",null,"210 糸満市",210,"糸満市",null,"56 設備設計コンサルタント業務",56,"設備設計コンサルタント業務",null,"5202 意匠",5202,"意匠",null,null,null,{"$f":"Q11","v":"5206 その他建築"},"5306 トンネル",null,"5506 その他補償","5606 その他設備",null,null,null,null,"062 建築設備士",62,"建築設備士",null,"その他資格者"]
["申請年度２",null,"年度＋『４月１日で入力』",null,"07 福島県",7,"福島県",null,"211 沖縄市",211,"沖縄市",null,"57 磁気探査調査業務",57,"磁気探査調査業務",null,"5203 構造",5203,"構造",null,null,null,null,"5307 施工計画及び施工設備",null,null,null,null,null,null,null,"064 建築構造士",64,"建築構造士"]
["障害者雇用義務従業員数",43.5,"障害者雇用が義務となる従業員数\nこの値「以上」を義務有として扱います",null,"08 茨城県",8,"茨城県",null,"212 豊見城市",212,"豊見城市",null,"58 気象関係コンサルタント業務",58,"気象関係コンサルタント業務",null,"5204 建築積算",5204,"建築積算",null,null,null,null,"5308 建設機械",null,null,null,null,null,null,null,"076 建築積算士（建築積算資格者）",76,"建築積算士（建築積算資格者）"]
[null,null,null,null,"09 栃木県",9,"栃木県",null,"213 うるま市",213,"うるま市",null,"61 その他",61,"その他",null,"5205 調査",5205,"調査",null,null,null,null,{"$f":"Q20","v":"5309 地質"},null,null,null,null,null,null,null,"080 建築コスト管理士",80,"建築コスト管理士"]
[null,null,null,null,"10 群馬県",10,"群馬県",null,"214 宮古島市",214,"宮古島市",null,null,null,null,null,"5206 その他建築",5206,"その他建築",null,null,null,null,"5310 造園",null,null,null,null,null,null,null,"082 耐震診断資格者",82,"耐震診断資格者"]
[null,null,null,null,"11 埼玉県",11,"埼玉県",null,"215 南城市",215,"南城市",null,null,null,null,null,"5301 土質及び基礎",5301,"土質及び基礎",null,null,null,null,{"$f":"Q22","v":"5311 その他土木"},null,null,null,null,null,null,null,"083 耐力度",83,"耐力度"]
[null,null,null,null,"12 千葉県",12,"千葉県",null,"301 国頭村",301,"国頭村",null,null,null,null,null,"5302 鋼構造及びコンクリ－ト",5302,"鋼構造及びコンクリ－ト",null,null,null,null,null,null,null,null,null,null,null,null,"107 測量士",107,"測量士","測量","測量士"]
[null,null,null,null,"13 東京都",13,"東京都",null,"302 大宜味村",302,"大宜味村",null,null,null,null,null,"5303 河川砂防及び海岸・海洋",5303,"河川砂防及び海岸・海洋",null,null,null,null,null,null,null,null,null,null,null,null,"208 測量士補",208,"測量士補",null,"測量士補"]
["※申請区分を2へ、シート申請書（登録データ３）の切手代を82→84",null,null,null,"14 神奈川県",14,"神奈川県",null,"303 東村",303,"東村",null,null,null,null,null,"5304 発電土木",5304,"発電土木",null,null,null,null,null,null,null,null,null,null,null,null,"701 技術士：機械部門",701,"技術士：機械部門","土木","技術士"]
[null,null,null,null,"15 新潟県",15,"新潟県",null,"306 今帰仁村",306,"今帰仁村",null,null,null,null,null,"5305 道路",5305,"道路",null,null,null,null,null,null,null,null,null,null,null,null,"702 技術士：船舶・海洋部門",702,"技術士：船舶・海洋部門"]
[null,null,null,null,"16 富山県",16,"富山県",null,"308 本部町",308,"本部町",null,null,null,null,null,"5306 トンネル",5306,"トンネル",null,null,null,null,null,null,null,null,null,null,null,null,"703 技術士：航空・宇宙部門",703,"技術士：航空・宇宙部門"]
[null,null,null,null,"17 石川県",17,"石川県",null,"311 恩納村",311,"恩納村",null,null,null,null,null,"5307 施工計画及び施工設備",5307,"施工計画及び施工設備",null,null,null,null,null,null,null,null,null,null,null,null,"704 技術士：電気電子部門",704,"技術士：電気電子部門"]
[null,null,null,null,"18 福井県",18,"福井県",null,"313 宜野座村",313,"宜野座村",null,null,null,null,null,"5308 建設機械",5308,"建設機械",null,null,null,null,null,null,null,null,null,null,null,null,"705 技術士：化学部門",705,"技術士：化学部門"]
[null,null,null,null,"19 山梨県",19,"山梨県",null,"314 金武町",314,"金武町",null,null,null,null,null,"5309 地質",5309,"地質",null,null,null,null,null,null,null,null,null,null,null,null,"706 技術士：繊維部門",706,"技術士：繊維部門"]
[null,null,null,null,"20 長野県",20,"長野県",null,"315 伊江村",315,"伊江村",null,null,null,null,null,"5310 造園",5310,"造園",null,null,null,null,null,null,null,null,null,null,null,null,"707 技術士：金属部門",707,"技術士：金属部門"]
[null,null,null,null,"21 岐阜県",21,"岐阜県",null,"324 読谷村",324,"読谷村",null,null,null,null,null,"5311 その他土木",5311,"その他土木",null,null,null,null,null,null,null,null,null,null,null,null,"708 技術士：資源工学部門",708,"技術士：資源工学部門"]
[null,null,null,null,"22 静岡県",22,"静岡県",null,"325 嘉手納町",325,"嘉手納町",null,null,null,null,null,"5401 地質調査",5401,"地質調査",null,null,null,null,null,null,null,null,null,null,null,null,"710 技術士：上下水道部門",710,"技術士：上下水道部門"]
[null,null,null,null,"23 愛知県",23,"愛知県",null,"326 北谷町",326,"北谷町",null,null,null,null,null,"5501 物件権利調査",5501,"物件権利調査",null,null,null,null,null,null,null,null,null,null,null,null,"711 技術士：衛生工学部門",711,"技術士：衛生工学部門"]
[null,null,null,null,"24 三重県",24,"三重県",null,"327 北中城村",327,"北中城村",null,null,null,null,null,"5502 事業関連調査",5502,"事業関連調査",null,null,null,null,null,null,null,null,null,null,null,null,"712 技術士：農業部門",712,"技術士：農業部門"]
[null,null,null,null,"25 滋賀県",25,"滋賀県",null,"328 中城村",328,"中城村",null,null,null,null,null,"5503 登記手続等",5503,"登記手続等",null,null,null,null,null,null,null,null,null,null,null,null,"713 技術士：森林部門",713,"技術士：森林部門"]
[null,null,null,null,"26 京都府",26,"京都府",null,"329 西原町",329,"西原町",null,null,null,null,null,"5504 営業補償",5504,"営業補償",null,null,null,null,null,null,null,null,null,null,null,null,"714 技術士：水産部門",714,"技術士：水産部門"]
[null,null,null,null,"27 大阪府",27,"大阪府",null,"348 与那原町",348,"与那原町",null,null,null,null,null,{"$f":"TEXT(R28,\"00 \") & S28","v":"5505 土地評価"},5505,"土地評価",null,null,null,null,null,null,null,null,null,null,null,null,"715 技術士：経営工学部門",715,"技術士：経営工学部門"]
[null,null,null,null,"28 兵庫県",28,"兵庫県",null,"350 南風原町",350,"南風原町",null,null,null,null,null,"5506 その他補償",5506,"その他補償",null,null,null,null,null,null,null,null,null,null,null,null,"716 技術士：情報工学部門",716,"技術士：情報工学部門"]
[null,null,null,null,"29 奈良県",29,"奈良県",null,"353 渡嘉敷村",353,"渡嘉敷村",null,null,null,null,null,"5601 暖冷房",5601,"暖冷房",null,null,null,null,null,null,null,null,null,null,null,null,"717 技術士：応用理学部門",717,"技術士：応用理学部門"]
[null,null,null,null,"30 和歌山県",30,"和歌山県",null,"354 座間味村",354,"座間味村",null,null,null,null,null,"5602 衛生",5602,"衛生",null,null,null,null,null,null,null,null,null,null,null,null,"718 技術士：生物工学部門",718,"技術士：生物工学部門"]
[null,null,null,null,"31 鳥取県",31,"鳥取県",null,"355 粟国村",355,"粟国村",null,null,null,null,null,"5603 電気",5603,"電気",null,null,null,null,null,null,null,null,null,null,null,null,"719 技術士：環境部門",719,"技術士：環境部門"]
[null,null,null,null,"32 島根県",32,"島根県",null,"356 渡名喜村",356,"渡名喜村",null,null,null,null,null,"5604 機械設備積算",5604,"機械設備積算",null,null,null,null,null,null,null,null,null,null,null,null,"720 技術士：原子力・放射線部門",720,"技術士：原子力・放射線部門"]
[null,null,null,null,"33 岡山県",33,"岡山県",null,"357 南大東村",357,"南大東村",null,null,null,null,null,"5605 電気設備積算",5605,"電気設備積算",null,null,null,null,null,null,null,null,null,null,null,null,"721 技術士：総合技術監理部門",721,"技術士：総合技術監理部門"]
[null,null,null,null,"34 広島県",34,"広島県",null,"358 北大東村",358,"北大東村",null,null,null,null,null,"5606 その他設備",5606,"その他設備",null,null,null,null,null,null,null,null,null,null,null,null,"722 技術士：建設部門（土質及び基礎）",722,"技術士：建設部門（土質及び基礎）"]
[null,null,null,null,"35 山口県",35,"山口県",null,"359 伊平屋村",359,"伊平屋村",null,null,null,null,null,"5701 磁気探査調査",5701,"磁気探査調査",null,null,null,null,null,null,null,null,null,null,null,null,"723 技術士：建設部門（鋼構造及びコンクリート）",723,"技術士：建設部門（鋼構造及びコンクリート）"]
[null,null,null,null,"36 徳島県",36,"徳島県",null,"360 伊是名村",360,"伊是名村",null,null,null,null,null,"5801 気象関係ｺﾝｻﾙﾀﾝﾄ",5801,"気象関係ｺﾝｻﾙﾀﾝﾄ",null,null,null,null,null,null,null,null,null,null,null,null,"724 技術士：建設部門（都市及び地方計画）",724,"技術士：建設部門（都市及び地方計画）"]
[null,null,null,null,"37 香川県",37,"香川県",null,"361 久米島町",361,"久米島町",null,null,null,null,null,"6101 その他",6101,"その他",null,null,null,null,null,null,null,null,null,null,null,null,"725 技術士：建設部門（河川、砂防及び海岸・海洋）",725,"技術士：建設部門（河川、砂防及び海岸・海洋）"]
[null,null,null,null,"38 愛媛県",38,"愛媛県",null,"362 八重瀬町",362,"八重瀬町",null,null,null,null,null,null,null,null,null,null,null,null,null,null,null,null,null,null,null,null,"726 技術士：建設部門（港湾及び空港）",726,"技術士：建設部門（港湾及び空港）"]
[null,null,null,null,"39 高知県",39,"高知県",null,"375 多良間村",375,"多良間村",null,null,null,null,null,null,null,null,null,null,null,null,null,null,null,null,null,null,null,null,"727 技術士：建設部門（電力土木）",727,"技術士：建設部門（電力土木）"]
[null,null,null,null,"40 福岡県",40,"福岡県",null,"381 竹富町",381,"竹富町",null,null,null,null,null,null,null,null,null,null,null,null,null,null,null,null,null,null,null,null,"728 技術士：建設部門（道路）",728,"技術士：建設部門（道路）"]
[null,null,null,null,"41 佐賀県",41,"佐賀県",null,"382 与那国町",382,"与那国町",null,null,null,null,null,null,null,null,null,null,null,null,null,null,null,null,null,null,null,null,"729 技術士：建設部門（鉄道）",729,"技術士：建設部門（鉄道）"]
[null,null,null,null,"42 長崎県",42,"長崎県",null,null,null,null,null,null,null,null,null,null,null,null,null,null,null,null,null,null,null,null,null,null,null,null,"730 技術士：建設部門（トンネル）",730,"技術士：建設部門（トンネル）"]
[null,null,null,null,"43 熊本県",43,"熊本県",null,null,null,null,null,null,null,null,null,null,null,null,null,null,null,null,null,null,null,null,null,null,null,null,"731 技術士：建設部門（施工計画、施工設備及び積算）",731,"技術士：建設部門（施工計画、施工設備及び積算）"]
[null,null,null,null,"44 大分県",44,"大分県",null,null,null,null,null,null,null,null,null,null,null,null,null,null,null,null,null,null,null,null,null,null,null,null,"732 技術士：建設部門（建設環境）",732,"技術士：建設部門（建設環境）"]
[null,null,null,null,"45 宮崎県",45,"宮崎県",null,null,null,null,null,null,null,null,null,null,null,null,null,null,null,null,null,null,null,null,null,null,null,null,"751 RCCM：河川、砂防及び海岸・海洋部門",751,"RCCM：河川、砂防及び海岸・海洋部門",null,"RCCM"]
[null,null,null,null,"46 鹿児島県",46,"鹿児島県",null,null,null,null,null,null,null,null,null,null,null,null,null,null,null,null,null,null,null,null,null,null,null,null,"752 RCCM：港湾及び空港部門",752,"RCCM：港湾及び空港部門"]
[null,null,null,null,"47 沖縄県",47,"沖縄県",null,null,null,null,null,null,null,null,null,null,null,null,null,null,null,null,null,null,null,null,null,null,null,null,"753 RCCM：電力土木部門",753,"RCCM：電力土木部門"]
[null,null,null,null,null,null,null,null,null,null,null,null,null,null,null,null,null,null,null,null,null,null,null,null,null,null,null,null,null,null,null,"754 RCCM：道路部門",754,"RCCM：道路部門"]
[null,null,null,null,null,null,null,null,null,null,null,null,null,null,null,null,null,null,null,null,null,null,null,null,null,null,null,null,null,null,null,"755 RCCM：鉄道部門",755,"RCCM：鉄道部門"]
[null,null,null,null,null,null,null,null,null,null,null,null,null,null,null,null,null,null,null,null,null,null,null,null,null,null,null,null,null,null,null,"756 RCCM：上水道及び工業用水道部門",756,"RCCM：上水道及び工業用水道部門"]
[null,null,null,null,null,null,null,null,null,null,null,null,null,null,null,null,null,null,null,null,null,null,null,null,null,null,null,null,null,null,null,"757 RCCM：下水道部門",757,"RCCM：下水道部門"]
[null,null,null,null,null,null,null,null,null,null,null,null,null,null,null,null,null,null,null,null,null,null,null,null,null,null,null,null,null,null,null,"758 RCCM：農業土木部門",758,"RCCM：農業土木部門"]
[null,null,null,null,null,null,null,null,null,null,null,null,null,null,null,null,null,null,null,null,null,null,null,null,null,null,null,null,null,null,null,"759 RCCM：森林土木部門",759,"RCCM：森林土木部門","土木","RCCM"]
[null,null,null,null,null,null,null,null,null,null,null,null,null,null,null,null,null,null,null,null,null,null,null,null,null,null,null,null,null,null,null,"760 RCCM：水産土木部門",760,"RCCM：水産土木部門"]
[null,null,null,null,null,null,null,null,null,null,null,null,null,null,null,null,null,null,null,null,null,null,null,null,null,null,null,null,null,null,null,"761 RCCM：廃棄物部門",761,"RCCM：廃棄物部門"]
[null,null,null,null,null,null,null,null,null,null,null,null,null,null,null,null,null,null,null,null,null,null,null,null,null,null,null,null,null,null,null,"762 RCCM：造園部門",762,"RCCM：造園部門"]
[null,null,null,null,null,null,null,null,null,null,null,null,null,null,null,null,null,null,null,null,null,null,null,null,null,null,null,null,null,null,null,"763 RCCM：都市計画及び地方計画部門",763,"RCCM：都市計画及び地方計画部門"]
[null,null,null,null,null,null,null,null,null,null,null,null,null,null,null,null,null,null,null,null,null,null,null,null,null,null,null,null,null,null,null,"764 RCCM：地質部門",764,"RCCM：地質部門"]
[null,null,null,null,null,null,null,null,null,null,null,null,null,null,null,null,null,null,null,null,null,null,null,null,null,null,null,null,null,null,null,"765 RCCM：土質及び基礎部門",765,"RCCM：土質及び基礎部門"]
[null,null,null,null,null,null,null,null,null,null,null,null,null,null,null,null,null,null,null,null,null,null,null,null,null,null,null,null,null,null,null,"766 RCCM：鋼構造物及びコンクリート部門",766,"RCCM：鋼構造物及びコンクリート部門"]
[null,null,null,null,null,null,null,null,null,null,null,null,null,null,null,null,null,null,null,null,null,null,null,null,null,null,null,null,null,null,null,"767 RCCM：トンネル部門",767,"RCCM：トンネル部門"]
[null,null,null,null,null,null,null,null,null,null,null,null,null,null,null,null,null,null,null,null,null,null,null,null,null,null,null,null,null,null,null,"768 RCCM：施工計画、施工設備及び積算部門",768,"RCCM：施工計画、施工設備及び積算部門"]
[null,null,null,null,null,null,null,null,null,null,null,null,null,null,null,null,null,null,null,null,null,null,null,null,null,null,null,null,null,null,null,"769 RCCM：建設環境部門",769,"RCCM：建設環境部門"]
[null,null,null,null,null,null,null,null,null,null,null,null,null,null,null,null,null,null,null,null,null,null,null,null,null,null,null,null,null,null,null,"770 RCCM：機械部門",770,"RCCM：機械部門"]
[null,null,null,null,null,null,null,null,null,null,null,null,null,null,null,null,null,null,null,null,null,null,null,null,null,null,null,null,null,null,null,{"$f":"TEXT(AG66,\"000 \") & AH66","v":"771 RCCM：電気電子部門"},771,"RCCM：電気電子部門"]
[null,null,null,null,null,null,null,null,null,null,null,null,null,null,null,null,null,null,null,null,null,null,null,null,null,null,null,null,null,null,null,"772 RCCM：建設情報部門",772,"RCCM：建設情報部門",null,"R05申請で追加"]
[null,null,null,null,null,null,null,null,null,null,null,null,null,null,null,null,null,null,null,null,null,null,null,null,null,null,null,null,null,null,null,"113 一級土木施工管理技士",113,"一級土木施工管理技士",null,"一級土木施工管理技士"]
[null,null,null,null,null,null,null,null,null,null,null,null,null,null,null,null,null,null,null,null,null,null,null,null,null,null,null,null,null,null,null,"214 二級土木施工管理技士（土木）",214,"二級土木施工管理技士（土木）",null,"二級土木施工管理技士"]
[null,null,null,null,null,null,null,null,null,null,null,null,null,null,null,null,null,null,null,null,null,null,null,null,null,null,null,null,null,null,null,"215 二級土木施工管理技士(鋼構造物塗装）",215,"二級土木施工管理技士(鋼構造物塗装）"]
[null,null,null,null,null,null,null,null,null,null,null,null,null,null,null,null,null,null,null,null,null,null,null,null,null,null,null,null,null,null,null,"216 二級土木施工管理技士(薬液注入）",216,"二級土木施工管理技士(薬液注入）"]
[null,null,null,null,null,null,null,null,null,null,null,null,null,null,null,null,null,null,null,null,null,null,null,null,null,null,null,null,null,null,null,"061 地すべり防止工事士",61,"地すべり防止工事士",null,"その他資格者"]
[null,null,null,null,null,null,null,null,null,null,null,null,null,null,null,null,null,null,null,null,null,null,null,null,null,null,null,null,null,null,null,"081 コンクリート診断士",81,"コンクリート診断士"]
[null,null,null,null,null,null,null,null,null,null,null,null,null,null,null,null,null,null,null,null,null,null,null,null,null,null,null,null,null,null,null,"051 土木学会認定技術者（特別上級土木技術者）",51,"土木学会認定技術者（特別上級土木技術者）",null,"R05申請で追加"]
[null,null,null,null,null,null,null,null,null,null,null,null,null,null,null,null,null,null,null,null,null,null,null,null,null,null,null,null,null,null,null,"052 土木学会認定技術者（上級土木技術者）",52,"土木学会認定技術者（上級土木技術者）",null,"R05申請で追加"]
[null,null,null,null,null,null,null,null,null,null,null,null,null,null,null,null,null,null,null,null,null,null,null,null,null,null,null,null,null,null,null,"053 土木学会認定技術者（１級土木技術者）",53,"土木学会認定技術者（１級土木技術者）",null,"R05申請で追加"]
[null,null,null,null,null,null,null,null,null,null,null,null,null,null,null,null,null,null,null,null,null,null,null,null,null,null,null,null,null,null,null,"054 土木鋼構造診断士",54,"土木鋼構造診断士",null,"R05申請で追加"]
[null,null,null,null,null,null,null,null,null,null,null,null,null,null,null,null,null,null,null,null,null,null,null,null,null,null,null,null,null,null,null,"127 一級電気工事施工管理技士",127,"一級電気工事施工管理技士","設備","電気系資格者"]
[null,null,null,null,null,null,null,null,null,null,null,null,null,null,null,null,null,null,null,null,null,null,null,null,null,null,null,null,null,null,null,"228 二級電気工事施工管理技士",228,"二級電気工事施工管理技士"]
[null,null,null,null,null,null,null,null,null,null,null,null,null,null,null,null,null,null,null,null,null,null,null,null,null,null,null,null,null,null,null,"155 第一種電気工事士",155,"第一種電気工事士"]
[null,null,null,null,null,null,null,null,null,null,null,null,null,null,null,null,null,null,null,null,null,null,null,null,null,null,null,null,null,null,null,"256 第二種電気工事士",256,"第二種電気工事士"]
[null,null,null,null,null,null,null,null,null,null,null,null,null,null,null,null,null,null,null,null,null,null,null,null,null,null,null,null,null,null,null,"258 電気主任技術者（第１種～第３種）",258,"電気主任技術者（第１種～第３種）"]
[null,null,null,null,null,null,null,null,null,null,null,null,null,null,null,null,null,null,null,null,null,null,null,null,null,null,null,null,null,null,null,"268 甲種消防設備士（第四類）",268,"甲種消防設備士（第四類）"]
[null,null,null,null,null,null,null,null,null,null,null,null,null,null,null,null,null,null,null,null,null,null,null,null,null,null,null,null,null,null,null,"269 乙種消防設備士（第四類及び第七類）",269,"乙種消防設備士（第四類及び第七類）"]
[null,null,null,null,null,null,null,null,null,null,null,null,null,null,null,null,null,null,null,null,null,null,null,null,null,null,null,null,null,null,null,"063 １級計装士　※その他に記入してください。",63,"１級計装士　※その他に記入してください。"]
[null,null,null,null,null,null,null,null,null,null,null,null,null,null,null,null,null,null,null,null,null,null,null,null,null,null,null,null,null,null,null,"129 一級管工事施工管理技士",129,"一級管工事施工管理技士",null,"機械系資格者"]
[null,null,null,null,null,null,null,null,null,null,null,null,null,null,null,null,null,null,null,null,null,null,null,null,null,null,null,null,null,null,null,"230 二級管工事施工管理技士",230,"二級管工事施工管理技士"]
[null,null,null,null,null,null,null,null,null,null,null,null,null,null,null,null,null,null,null,null,null,null,null,null,null,null,null,null,null,null,null,"168 甲種消防設備士（第四類を除く）",168,"甲種消防設備士（第四類を除く）"]
[null,null,null,null,null,null,null,null,null,null,null,null,null,null,null,null,null,null,null,null,null,null,null,null,null,null,null,null,null,null,null,"169 乙種消防設備士（第四類及び第七類を除く）",169,"乙種消防設備士（第四類及び第七類を除く）"]
[null,null,null,null,null,null,null,null,null,null,null,null,null,null,null,null,null,null,null,null,null,null,null,null,null,null,null,null,null,null,null,"265 給水装置工事主任技術者",265,"給水装置工事主任技術者"]
[null,null,null,null,null,null,null,null,null,null,null,null,null,null,null,null,null,null,null,null,null,null,null,null,null,null,null,null,null,null,null,"071 不動産鑑定士",71,"不動産鑑定士","補償","不動産鑑定士"]
[null,null,null,null,null,null,null,null,null,null,null,null,null,null,null,null,null,null,null,null,null,null,null,null,null,null,null,null,null,null,null,"098 土地家屋調査士",98,"土地家屋調査士",null,"土地家屋調査士"]
[null,null,null,null,null,null,null,null,null,null,null,null,null,null,null,null,null,null,null,null,null,null,null,null,null,null,null,null,null,null,null,"801 補償業務管理士：土地調査部門",801,"補償業務管理士：土地調査部門",null,"補償業務管理士"]
[null,null,null,null,null,null,null,null,null,null,null,null,null,null,null,null,null,null,null,null,null,null,null,null,null,null,null,null,null,null,null,"802 補償業務管理士：土地評価部門",802,"補償業務管理士：土地評価部門"]
[null,null,null,null,null,null,null,null,null,null,null,null,null,null,null,null,null,null,null,null,null,null,null,null,null,null,null,null,null,null,null,"803 補償業務管理士：物件部門",803,"補償業務管理士：物件部門"]
[null,null,null,null,null,null,null,null,null,null,null,null,null,null,null,null,null,null,null,null,null,null,null,null,null,null,null,null,null,null,null,"804 補償業務管理士：機械工作物部門",804,"補償業務管理士：機械工作物部門"]
[null,null,null,null,null,null,null,null,null,null,null,null,null,null,null,null,null,null,null,null,null,null,null,null,null,null,null,null,null,null,null,"805 補償業務管理士：営業補償・特殊補償部門",805,"補償業務管理士：営業補償・特殊補償部門"]
[null,null,null,null,null,null,null,null,null,null,null,null,null,null,null,null,null,null,null,null,null,null,null,null,null,null,null,null,null,null,null,"806 補償業務管理士：事業損失部門",806,"補償業務管理士：事業損失部門"]
[null,null,null,null,null,null,null,null,null,null,null,null,null,null,null,null,null,null,null,null,null,null,null,null,null,null,null,null,null,null,null,"807 補償業務管理士：補償関連部門",807,"補償業務管理士：補償関連部門"]
[null,null,null,null,null,null,null,null,null,null,null,null,null,null,null,null,null,null,null,null,null,null,null,null,null,null,null,null,null,null,null,"808 補償業務管理士：総合補償部門",808,"補償業務管理士：総合補償部門"]
[null,null,null,null,null,null,null,null,null,null,null,null,null,null,null,null,null,null,null,null,null,null,null,null,null,null,null,null,null,null,null,"073 土地区画整理士",73,"土地区画整理士",null,"土地区画整理士"]
[null,null,null,null,null,null,null,null,null,null,null,null,null,null,null,null,null,null,null,null,null,null,null,null,null,null,null,null,null,null,null,"099 ―",99,"―",null,"公共用地取得実務経験者"]
[null,null,null,null,null,null,null,null,null,null,null,null,null,null,null,null,null,null,null,null,null,null,null,null,null,null,null,null,null,null,null,"074 地質調査技士",74,"地質調査技士","地質調査","地質調査技士"]
[null,null,null,null,null,null,null,null,null,null,null,null,null,null,null,null,null,null,null,null,null,null,null,null,null,null,null,null,null,null,null,"075 環境計量士",75,"環境計量士",null,"環境計量士"]
[null,null,null,null,null,null,null,null,null,null,null,null,null,null,null,null,null,null,null,null,null,null,null,null,null,null,null,null,null,null,null,"077 港湾海洋調査士（危険物探査部門）",77,"港湾海洋調査士（危険物探査部門）",null,"港湾海洋調査士"]
[null,null,null,null,null,null,null,null,null,null,null,null,null,null,null,null,null,null,null,null,null,null,null,null,null,null,null,null,null,null,null,{"$f":"TEXT(AG106,\"000 \") & AH106","v":"072 磁気探査技士"},72,"磁気探査技士",null,"磁気探査技士"]

{"sheet":"マクロ有効化案内","index":9,"n_rows":9,"n_cols":2,"rows_kept":9,"cut":false,"hidden":false,"merged":[]}
[]
[null,"【注意事項】"]
[]
[null,"Excelのマクロを利用して申請書等を作成する仕組みになっています。"]
[]
[null,"※マクロを有効にしないと正しく入力できません。"]
[null,"　必ず入力前にマクロを有効にしてください。"]
[]
[null,"【Excel2010の場合】"]

{"sheet":"資格者集計ワーク","index":10,"n_rows":0,"n_cols":0,"rows_kept":0,"cut":false,"hidden":true,"merged":[]}